﻿Merchandising Type Category,Detailed Merchant Category,Supplier,Purchase Details,Transaction Date,Value,Department
Facilities/Repair Supplies,Automotive Parts Stores,National Windscreens,Supplies and Services related expenditure,01/10/2021,92.5,"Director of Housing, Neighbourhood and Building Services"
Transportation Conveyor,"Parking Lots, Meters, Garages",Queen Alexandra Hopita,Transport related expenditure,01/10/2021,2.67,Director of Children's Services and Education
Freight/Courier/Warehouse Svcs,Public Warehousing,Www.Safestore.Co.Uk,Premises related expenditure,01/10/2021,5.89,"Director of Housing, Neighbourhood and Building Services"
Government Service,Tax Payments,Dvla Vehicle Tax,Transport related expenditure,01/10/2021,277.5,"Director of Housing, Neighbourhood and Building Services"
Government Service,Tax Payments,Dvla Vehicle Tax,Transport related expenditure,01/10/2021,277.5,"Director of Housing, Neighbourhood and Building Services"
Type of Retail Store,Electronics Sales,Currys Online,Supplies and Services related expenditure,01/10/2021,274.17,Director of Children's Services and Education
Other Supplies,Misc Gen Merchandise - Def,B&m Retail Ltd,Supplies and Services related expenditure,01/10/2021,10.82,"Director of Housing, Neighbourhood and Building Services"
Other Supplies,Misc Gen Merchandise - Def,B&m Retail Ltd,Supplies and Services related expenditure,01/10/2021,41.93,Director of Children's Services and Education
Facilities/Repair Supplies,Floor Covering Stores,The Carpet Clearance W,Supplies and Services related expenditure,01/10/2021,114.17,Director of Children's Services and Education
Facilities/Repair Supplies,Misc Home Furnishing,Tillys Beds Ltd,Supplies and Services related expenditure,01/10/2021,180,Director of Children's Services and Education
Other Supplies,Discount Stores,Argos Ltd,Supplies and Services related expenditure,01/10/2021,244.12,Director of Children's Services and Education
Type of Retail Store,Grocery Stores/Supermarkets,Asda Stores,Supplies and Services related expenditure,01/10/2021,258.67,Director of Children's Services and Education
Other Supplies,Misc Speciality Retail,Www.Sign-Holders.Co.Uk,Premises related expenditure,01/10/2021,229.4,"Director of Culture, Leisure & Regulatory Services"
Auto/Vehicle Expenses,Tire Retread/Repair Shops,Setyres,Transport related expenditure,01/10/2021,110.76,"Director of Culture, Leisure & Regulatory Services"
Type of Retail Store,Grocery Stores/Supermarkets,Marks&spencer Plc Saca,Supplies and Services related expenditure,01/10/2021,4.42,Director of Children's Services and Education
Eating And Drinking Places,Fast Food Restaurants,Sandrine Choi,Agency and Third Party Payments related expenditure,01/10/2021,21.54,Director of Children's Services and Education
Type of Retail Store,Hobby/Toy/Game Stores,Smyths Toys Portsmouth,Supplies and Services related expenditure,01/10/2021,91.66,Director of Children's Services and Education
Freight/Courier/Warehouse Svcs,Public Warehousing,Big Yellow - Portsmout,Premises related expenditure,01/10/2021,137.67,"Director of Housing, Neighbourhood and Building Services"
Freight/Courier/Warehouse Svcs,Public Warehousing,Big Yellow - Portsmout,Premises related expenditure,01/10/2021,104.6,"Director of Housing, Neighbourhood and Building Services"
Type of Retail Store,Grocery Stores/Supermarkets,Sainsburys S/mkts,Supplies and Services related expenditure,01/10/2021,10.45,Director of Children's Services and Education
Equipment And Furniture,Equip/Furn Rent/Lease Serv,Parkerbrand.Com,Supplies and Services related expenditure,01/10/2021,-66.16,"Director of Housing, Neighbourhood and Building Services"
Digital Goods,"Digital Goods - Media, Books, Movies, Music",Spotify,Supplies and Services related expenditure,01/10/2021,2.67,Director of Public Health
Hotels And Motels,Lodging/Hotels/Motels/Resorts,Hotel At Booking.Com,Employees related expenditure,01/10/2021,63,Director of Corporate Services
Business Services,Advertising Services,Linkedin Ireland,Supplies and Services related expenditure,01/10/2021,67.17,Director of Regeneration
Business Services,Advertising Services,Google Ads5247259773,Supplies and Services related expenditure,01/10/2021,500,Director of Children's Services and Education
Transportation Conveyor,Passenger Railways,Swrailway Tck Off,Transport related expenditure,01/10/2021,29.4,Director of Children's Services and Education
Type of Retail Store,Sporting Goods Stores,Jd Sports Internet,Agency and Third Party Payments related expenditure,01/10/2021,67.5,Director of Children's Services and Education
Type of Retail Store,Children/Infants Wear Store,Sp * Pretty Little Clo,Agency and Third Party Payments related expenditure,01/10/2021,127,Director of Children's Services and Education
Other Supplies,Misc Speciality Retail,Amznmktplace,Supplies and Services related expenditure,01/10/2021,35.84,Director of Children's Services and Education
Digital Goods,Digital Goods - Applications (Excludes Games),Facebk *facebk Kk8rz7fqs2,Supplies and Services related expenditure,01/10/2021,61.32,Director of Children's Services and Education
Type of Retail Store,Grocery Stores/Supermarkets,Asda Groceries Online,Supplies and Services related expenditure,01/10/2021,-19.7,Director of Children's Services and Education
Type of Retail Store,Grocery Stores/Supermarkets,Asda Groceries Online,Supplies and Services related expenditure,01/10/2021,3.75,Director of Children's Services and Education
Type of Retail Store,Grocery Stores/Supermarkets,Asda Groceries Online,Supplies and Services related expenditure,01/10/2021,65.14,Director of Children's Services and Education
Automobile Services & Supplies,Service Stations,Green Road Service Statio,Transport related expenditure,01/10/2021,41.67,"Director of Housing, Neighbourhood and Building Services"
Government Service,Govt Serv - Default,Portsmouth City Co,Supplies and Services related expenditure,01/10/2021,31.67,Director of Children's Services and Education
Eating And Drinking Places,Eating Places/Restaurants,Ceanos,Supplies and Services related expenditure,01/10/2021,22.8,Director of Portsmouth International Port
Business To Business Facility/,Hardware Equipment/Supplies,Www.Ecoprod.Co.Uk,Supplies and Services related expenditure,01/10/2021,159.7,"Director of Housing, Neighbourhood and Building Services"
Type of Retail Store,Grocery Stores/Supermarkets,Tesco Stores 6489,Supplies and Services related expenditure,01/10/2021,7.92,Director of Adult Care
Type of Retail Store,Grocery Stores/Supermarkets,Asda Groceries Online,Supplies and Services related expenditure,01/10/2021,-2.11,Director of Adult Care
Type of Retail Store,Grocery Stores/Supermarkets,Asda Groceries Online,Supplies and Services related expenditure,01/10/2021,9,Director of Adult Care
Type of Retail Store,Grocery Stores/Supermarkets,Iceland Foods,Supplies and Services related expenditure,01/10/2021,63.6,Director of Adult Care
Type of Retail Store,Grocery Stores/Supermarkets,Asda Groceries Online,Supplies and Services related expenditure,01/10/2021,102.62,Director of Adult Care
Hotels And Motels,Lodging/Hotels/Motels/Resorts,Hotel At Booking.Com,Supplies and Services related expenditure,01/10/2021,79,Director of Children's Services and Education
Amusement/Entertainment,Member Clubs/Sport/Rec/Golf,Rtpi,Supplies and Services related expenditure,01/10/2021,249,Director of Regeneration
Business To Business Eqpt/Furn,Computer Software Stores,Arbor Education,Supplies and Services related expenditure,01/10/2021,75,Director of Children's Services and Education
Business Expenses/Services,Postage Stamps,Post Office Counter,Supplies and Services related expenditure,01/10/2021,9.35,Director of Children's Services and Education
Facilities/Repair Supplies,Lawn/Garden Supply/Nursery,Www.Tudorenvironmental,Supplies and Services related expenditure,01/10/2021,463.11,"Director of Culture, Leisure & Regulatory Services"
Other Supplies,Discount Stores,Argos Ltd,Agency and Third Party Payments related expenditure,01/10/2021,379.99,Director of Children's Services and Education
Equipment And Furniture,Household Appliance Stores,Ao Retail Limited,Supplies and Services related expenditure,01/10/2021,-8.33,Director of Adult Care
Type of Retail Store,Grocery Stores/Supermarkets,Tesco Stores 6679,Supplies and Services related expenditure,01/10/2021,16.67,Director of Children's Services and Education
Facilities/Repair Supplies,Lumber/Build. Supply Stores,Screwfix Direct,Supplies and Services related expenditure,01/10/2021,21.65,"Director of Housing, Neighbourhood and Building Services"
Business To Business Eqpt/Furn,Computer Software Stores,Currys Business,Supplies and Services related expenditure,01/10/2021,4312.22,Director of Regeneration
Transportation Conveyor,Bus Lines/Charter/Tour,The Provincial Bus,Supplies and Services related expenditure,01/10/2021,130,Director of Children's Services and Education
Type of Retail Store,Drug Stores & Pharmacies,Superdrug Stores Plc,Supplies and Services related expenditure,01/10/2021,18.73,Director of Children's Services and Education
Type of Retail Store,Grocery Stores/Supermarkets,Asda Stores Ltd,Supplies and Services related expenditure,01/10/2021,30,Director of Children's Services and Education
Government Service,Schools - Default,Maths Circle Ltd,Supplies and Services related expenditure,01/10/2021,94.9,Director of Children's Services and Education
Facilities/Repair Supplies,Home Supply Warehouse Stores,B & Q 1260,Supplies and Services related expenditure,01/10/2021,50,Director of Regeneration
Facilities/Repair Supplies,Lumber/Build. Supply Stores,Screwfix Direct,Premises related expenditure,01/10/2021,56.92,Director of Children's Services and Education
Type of Retail Store,Grocery Stores/Supermarkets,Lidl Gb Portsmouth,Premises related expenditure,01/10/2021,9.97,"Director of Culture, Leisure & Regulatory Services"
Facilities/Repair Supplies,Home Supply Warehouse Stores,B & Q 1260,Premises related expenditure,01/10/2021,51.6,"Director of Culture, Leisure & Regulatory Services"
Facilities/Repair Supplies,Lumber/Build. Supply Stores,Screwfix Direct,Premises related expenditure,01/10/2021,121.14,"Director of Culture, Leisure & Regulatory Services"
Other Supplies,Misc Speciality Retail,Amznmktplace Amazon.Co.Uk,Supplies and Services related expenditure,01/10/2021,27.42,"Director of Culture, Leisure & Regulatory Services"
Type of Retail Store,Record Shops,Amazon Music,Supplies and Services related expenditure,01/10/2021,12.49,Director of Adult Care
Medical,Lab/Med/Hospital Equipment,Wightman & Parrish,Premises related expenditure,01/10/2021,103.9,"Director of Housing, Neighbourhood and Building Services"
Personal Service Provider,Computer Program/Sys Design,Buzzsprout.Com Podcast,Supplies and Services related expenditure,01/10/2021,9.2,Solent LEP
Business To Business Eqpt/Furn,Stationery/Office Supplies,Www.Banneruk.Com,Supplies and Services related expenditure,01/10/2021,11.24,Director of Children's Services and Education
Business To Business Eqpt/Furn,Stationery/Office Supplies,Www.Banneruk.Com,Supplies and Services related expenditure,01/10/2021,-6.71,Director of Adult Care
Transportation Conveyor,Passenger Railways,Sw Railway App,Transport related expenditure,01/10/2021,38.8,Director of Children's Services and Education
Clothing Services,Mens/Womens Clothing Stores,Prettylittlething.Com,Supplies and Services related expenditure,01/10/2021,26.66,Director of Children's Services and Education
Clothing Services,Family Clothing Stores,Shein.Com,Supplies and Services related expenditure,01/10/2021,29.16,Director of Children's Services and Education
Government Service,Govt Serv - Default,Pcc Moto Payment,Supplies and Services related expenditure,01/10/2021,70,Director of Children's Services and Education
Amusement/Entertainment,Motion Picture Theatres,Vue Entertainment Ltd,Agency and Third Party Payments related expenditure,01/10/2021,9.63,Director of Children's Services and Education
Amusement/Entertainment,Motion Picture Theatres,Vue Entertainment Ltd,Agency and Third Party Payments related expenditure,01/10/2021,9.63,Director of Children's Services and Education
Amusement/Entertainment,Motion Picture Theatres,Vue Cinemas,Agency and Third Party Payments related expenditure,01/10/2021,12.73,Director of Children's Services and Education
Type of Retail Store,Grocery Stores/Supermarkets,Asda Groceries Online,Supplies and Services related expenditure,01/10/2021,-0.19,Director of Children's Services and Education
Type of Retail Store,Grocery Stores/Supermarkets,Asda Groceries Online,Supplies and Services related expenditure,01/10/2021,2.41,Director of Children's Services and Education
Type of Retail Store,Grocery Stores/Supermarkets,Asda Groceries Online,Supplies and Services related expenditure,01/10/2021,-6.76,Director of Children's Services and Education
Type of Retail Store,Grocery Stores/Supermarkets,Asda Groceries Online,Supplies and Services related expenditure,01/10/2021,81.58,Director of Children's Services and Education
Type of Retail Store,Grocery Stores/Supermarkets,Asda Stores,Supplies and Services related expenditure,01/10/2021,117.42,Director of Children's Services and Education
Medical,Lab/Med/Hospital Equipment,Westholme,Supplies and Services related expenditure,01/10/2021,105,Director of Adult Care
Medical,Lab/Med/Hospital Equipment,Wightman & Parrish,Premises related expenditure,01/10/2021,86.81,Director of Children's Services and Education
Medical,Lab/Med/Hospital Equipment,Wightman & Parrish,Premises related expenditure,01/10/2021,153.99,Director of Children's Services and Education
Transportation Conveyor,"Parking Lots, Meters, Garages",Ncp Portsmouth.,Transport related expenditure,01/10/2021,1,Director of Children's Services and Education
Eating And Drinking Places,Fast Food Restaurants,McDonalds,Agency and Third Party Payments related expenditure,01/10/2021,5.16,Director of Children's Services and Education
Eating And Drinking Places,Fast Food Restaurants,McDonalds,Agency and Third Party Payments related expenditure,01/10/2021,2.28,Director of Children's Services and Education
Eating And Drinking Places,Fast Food Restaurants,McDonalds,Agency and Third Party Payments related expenditure,01/10/2021,7.08,Director of Children's Services and Education
Eating And Drinking Places,Fast Food Restaurants,McDonalds,Agency and Third Party Payments related expenditure,01/10/2021,1.19,Director of Children's Services and Education
Eating And Drinking Places,Fast Food Restaurants,Fresh,Agency and Third Party Payments related expenditure,01/10/2021,10.4,Director of Children's Services and Education
Type of Retail Store,Cosmetic Stores,Sallysalonservices4243,Supplies and Services related expenditure,01/10/2021,10.48,Director of Children's Services and Education
Type of Retail Store,Grocery Stores/Supermarkets,Wm Morrisons Store,Supplies and Services related expenditure,01/10/2021,15,Director of Children's Services and Education
Eating And Drinking Places,Fast Food Restaurants,De Garden Limited,Agency and Third Party Payments related expenditure,01/10/2021,29.58,Director of Children's Services and Education
Transportation Conveyor,Passenger Railways,Swrailwayselfserve,Supplies and Services related expenditure,01/10/2021,14.48,Director of Children's Services and Education
Business To Business Eqpt/Furn,Stationery/Office Supplies,Www.Banneruk.Com,Supplies and Services related expenditure,01/10/2021,5.62,Director of Regeneration
Government Service,Govt Serv - Default,Hampshire County Counc,Supplies and Services related expenditure,01/10/2021,15.74,Director of Children's Services and Education
Business To Business Eqpt/Furn,Stationery/Office Supplies,Www.Banneruk.Com,Supplies and Services related expenditure,01/10/2021,81.7,Director of Regeneration
Government Service,Govt Serv - Default,Disclosure & Barring,Supplies and Services related expenditure,01/10/2021,13,Director of Children's Services and Education
Government Service,Govt Serv - Default,Disclosure & Barring,Supplies and Services related expenditure,01/10/2021,13,Director of Children's Services and Education
Government Service,Govt Serv - Default,Disclosure & Barring,Supplies and Services related expenditure,01/10/2021,13,Director of Children's Services and Education
Government Service,Govt Serv - Default,Disclosure & Barring,Supplies and Services related expenditure,01/10/2021,13,Director of Children's Services and Education
Government Service,Govt Serv - Default,Disclosure & Barring,Supplies and Services related expenditure,01/10/2021,13,Director of Children's Services and Education
Government Service,Govt Serv - Default,Disclosure & Barring,Supplies and Services related expenditure,01/10/2021,13,Director of Children's Services and Education
Other Supplies,Misc Gen Merchandise - Def,Sp * School Badges Uk,Supplies and Services related expenditure,01/10/2021,15,Director of Children's Services and Education
Other Supplies,Misc Speciality Retail,Amznmktplace Amazon.Co.Uk,Premises related expenditure,01/10/2021,7.49,Director of Children's Services and Education
Business To Business Eqpt/Furn,Stationery/Office Supplies,Www.Banneruk.Com,Supplies and Services related expenditure,01/10/2021,14.81,Director of Adult Care
Eating And Drinking Places,Fast Food Restaurants,McDonalds,Supplies and Services related expenditure,02/10/2021,4.59,Director of Children's Services and Education
Other Supplies,Misc Speciality Retail,Amznmktplace,Supplies and Services related expenditure,02/10/2021,15.82,"Director of Housing, Neighbourhood and Building Services"
Equipment And Furniture,Furniture/Equip Stores,Ikea Ltd 125 Southampton,Supplies and Services related expenditure,02/10/2021,5.83,Director of Adult Care
Government Service,Govt Serv - Default,Hm Passport Office,Supplies and Services related expenditure,02/10/2021,85,Director of Children's Services and Education
Other Supplies,Misc Speciality Retail,Amznmktplace,Supplies and Services related expenditure,02/10/2021,49.99,Director of Children's Services and Education
Other Supplies,Misc Speciality Retail,Amznmktplace,Supplies and Services related expenditure,02/10/2021,24.99,Director of Children's Services and Education
Transportation Conveyor,"Parking Lots, Meters, Garages",Ncp Portsmouth Market Wa,Transport related expenditure,02/10/2021,2.7,Director of Children's Services and Education
Eating And Drinking Places,Pkg Stores/Beer/Wine/Liquor,Krishna,Supplies and Services related expenditure,02/10/2021,3.18,Director of Children's Services and Education
Type of Retail Store,Sporting Goods Stores,Footasylum,Supplies and Services related expenditure,02/10/2021,105.07,Director of Children's Services and Education
Other Supplies,Misc Speciality Retail,Amznbusiness,Supplies and Services related expenditure,02/10/2021,9.41,"Director of Housing, Neighbourhood and Building Services"
Type of Retail Store,Grocery Stores/Supermarkets,Tesco Store 3055,Supplies and Services related expenditure,02/10/2021,0.91,"Director of Housing, Neighbourhood and Building Services"
Type of Retail Store,Grocery Stores/Supermarkets,Tesco Store 3055,Supplies and Services related expenditure,02/10/2021,2.5,"Director of Housing, Neighbourhood and Building Services"
Transportation Conveyor,"Parking Lots, Meters, Garages",Symonds ( UK ) Ltd,Supplies and Services related expenditure,02/10/2021,3,Director of Children's Services and Education
Equipment And Furniture,Furniture/Equip Stores,Ikea Ltd 125 Southampton,Agency and Third Party Payments related expenditure,02/10/2021,10.42,Director of Children's Services and Education
Equipment And Furniture,Furniture/Equip Stores,Ikea Ltd 125 Southampton,Agency and Third Party Payments related expenditure,02/10/2021,5.75,Director of Children's Services and Education
Eating And Drinking Places,Fast Food Restaurants,Starbucks Coffee,Agency and Third Party Payments related expenditure,02/10/2021,5.05,Director of Children's Services and Education
Eating And Drinking Places,Fast Food Restaurants,Starbucks Coffee,Agency and Third Party Payments related expenditure,02/10/2021,14,Director of Children's Services and Education
Equipment And Furniture,Furniture/Equip Stores,Ikea Ltd 125 Southampton,Supplies and Services related expenditure,02/10/2021,208.33,Director of Children's Services and Education
Type of Retail Store,Grocery Stores/Supermarkets,Aldi Stores Ltd,Premises related expenditure,02/10/2021,24.98,Director of Children's Services and Education
Eating And Drinking Places,Fast Food Restaurants,Just Eat,Agency and Third Party Payments related expenditure,02/10/2021,10.42,Director of Children's Services and Education
Type of Retail Store,Drug Stores & Pharmacies,Bobat Pharmacy,Supplies and Services related expenditure,02/10/2021,22.2,Director of Children's Services and Education
Personal Service Provider,Mgmt/Consult/Public Rel Ser,Cruises News,Supplies and Services related expenditure,03/10/2021,381.78,Director of Portsmouth International Port
Miscellaneous,Other Direct Marketers,Amazon.Co.Uk,Supplies and Services related expenditure,03/10/2021,39.16,Director of Children's Services and Education
Type of Retail Store,Grocery Stores/Supermarkets,Sainsburys S/mkt,Supplies and Services related expenditure,03/10/2021,185.42,Director of Children's Services and Education
Miscellaneous,Other Direct Marketers,Amazon.Co.Uk,Supplies and Services related expenditure,03/10/2021,24.02,"Director of Culture, Leisure & Regulatory Services"
Other Supplies,Department Stores,Southern Co-Op 0009,Supplies and Services related expenditure,03/10/2021,1.75,Director of Children's Services and Education
Type of Retail Store,Grocery Stores/Supermarkets,Tesco Stores 4579,Supplies and Services related expenditure,03/10/2021,9.17,Director of Children's Services and Education
Type of Retail Store,Grocery Stores/Supermarkets,Tesco Stores 4579,Premises related expenditure,03/10/2021,39.15,Director of Children's Services and Education
Type of Retail Store,Grocery Stores/Supermarkets,Tesco Stores 4579,Supplies and Services related expenditure,03/10/2021,6.63,Director of Children's Services and Education
Type of Retail Store,Grocery Stores/Supermarkets,Tesco Stores 4579,Supplies and Services related expenditure,03/10/2021,13.33,Director of Children's Services and Education
Type of Retail Store,Grocery Stores/Supermarkets,Tesco Stores 4579,Supplies and Services related expenditure,03/10/2021,192.3,Director of Children's Services and Education
Type of Retail Store,Grocery Stores/Supermarkets,Tesco Stores 4579,Supplies and Services related expenditure,03/10/2021,27.96,Director of Children's Services and Education
Eating And Drinking Places,Fast Food Restaurants,McDonalds,Agency and Third Party Payments related expenditure,03/10/2021,11.07,Director of Children's Services and Education
Eating And Drinking Places,Fast Food Restaurants,McDonalds,Agency and Third Party Payments related expenditure,03/10/2021,2.23,Director of Children's Services and Education
Facilities/Repair Supplies,Hardware Stores,Toolstation Uk,Supplies and Services related expenditure,03/10/2021,72.92,"Director of Housing, Neighbourhood and Building Services"
Digital Goods,Digital Goods - Games,Microsoft*microsoft 365 P,Supplies and Services related expenditure,03/10/2021,41.99,Director of Children's Services and Education
Other Supplies,Misc Speciality Retail,Amznmktplace Amazon.Co.Uk,Supplies and Services related expenditure,03/10/2021,38.97,"Director of Housing, Neighbourhood and Building Services"
Other Supplies,Misc Gen Merchandise - Def,Wilko Retail Limited,Supplies and Services related expenditure,03/10/2021,10,"Director of Housing, Neighbourhood and Building Services"
Clothing Services,Mens/Womens Clothing Stores,Sportsdirect.Com,Supplies and Services related expenditure,03/10/2021,24.99,Director of Children's Services and Education
Other Supplies,Misc Speciality Retail,Amznbusiness,Supplies and Services related expenditure,03/10/2021,24.99,Director of Adult Care
Type of Retail Store,Grocery Stores/Supermarkets,Asda Stores,Supplies and Services related expenditure,03/10/2021,19.47,Director of Children's Services and Education
Type of Retail Store,Grocery Stores/Supermarkets,Lidl Gb Portsmouth,Supplies and Services related expenditure,03/10/2021,27.54,Director of Children's Services and Education
Type of Retail Store,Grocery Stores/Supermarkets,Wm Morrisons Store,Supplies and Services related expenditure,03/10/2021,2.2,Director of Children's Services and Education
Type of Retail Store,Grocery Stores/Supermarkets,Tesco Stores 4579,Supplies and Services related expenditure,03/10/2021,5.85,Director of Children's Services and Education
Eating And Drinking Places,Fast Food Restaurants,Starbucks Coffee,Agency and Third Party Payments related expenditure,03/10/2021,0.04,Director of Children's Services and Education
Eating And Drinking Places,Fast Food Restaurants,Starbucks Coffee,Agency and Third Party Payments related expenditure,03/10/2021,4.6,Director of Children's Services and Education
Eating And Drinking Places,Fast Food Restaurants,Starbucks Coffee,Agency and Third Party Payments related expenditure,03/10/2021,3.05,Director of Children's Services and Education
Other Supplies,Misc Speciality Retail,Amznmktplace Amazon.Co.Uk,Supplies and Services related expenditure,03/10/2021,18.98,Director of Children's Services and Education
Other Supplies,Misc Speciality Retail,Amznmktplace,Supplies and Services related expenditure,03/10/2021,37.48,Director of Children's Services and Education
Other Supplies,Misc Speciality Retail,Amznmktplace Amazon.Co.Uk,Supplies and Services related expenditure,03/10/2021,51.63,Director of Children's Services and Education
Type of Retail Store,Grocery Stores/Supermarkets,Iceland Foods,Supplies and Services related expenditure,01/10/2021,41.68,Director of Children's Services and Education
Clothing Services,Shoe Stores,Www.Wolverineworldwide,Supplies and Services related expenditure,02/10/2021,100,Director of Regeneration
Other Supplies,Misc Speciality Retail,Amznbusiness,Supplies and Services related expenditure,03/10/2021,16.78,Director of Children's Services and Education
Other Supplies,Misc Speciality Retail,Amznbusiness,Supplies and Services related expenditure,03/10/2021,33.56,Director of Children's Services and Education
Automobile Services & Supplies,Service Stations,Eastern Road Service Stat,Transport related expenditure,03/10/2021,50.38,Director of Children's Services and Education
Other Supplies,Misc Speciality Retail,Amznmktplace Amazon.Co.Uk,Supplies and Services related expenditure,03/10/2021,8.16,Director of Children's Services and Education
Other Supplies,Misc Speciality Retail,Amznmktplace Amazon.Co.Uk,Premises related expenditure,03/10/2021,8.32,Director of Children's Services and Education
Other Supplies,Misc Speciality Retail,Amznmktplace Amazon.Co.Uk,Supplies and Services related expenditure,03/10/2021,9.2,Director of Children's Services and Education
Other Supplies,Misc Speciality Retail,Amznmktplace,Supplies and Services related expenditure,04/10/2021,29.16,"Director of Housing, Neighbourhood and Building Services"
Other Supplies,Misc Speciality Retail,Amznmktplace,Supplies and Services related expenditure,04/10/2021,29.16,"Director of Housing, Neighbourhood and Building Services"
Other Supplies,Misc Speciality Retail,Amznmktplace,Supplies and Services related expenditure,04/10/2021,24.98,Director of Children's Services and Education
Personal Service Provider,Professional Services - Def,Thomson Reuters UK Ltd,Transport related expenditure,04/10/2021,144,Director of Corporate Services
Personal Service Provider,Professional Services - Def,Thomson Reuters UK Ltd,Transport related expenditure,04/10/2021,144,Director of Corporate Services
Airlines,British Awys,British A,Supplies and Services related expenditure,04/10/2021,139.78,Director of Portsmouth International Port
Other Supplies,Misc Speciality Retail,Amznmktplace,Supplies and Services related expenditure,04/10/2021,166.66,Director of Portsmouth International Port
Hotels And Motels,Travelodge,Travelodge Gb0000,Supplies and Services related expenditure,04/10/2021,71.6,Director of Children's Services and Education
Other Supplies,Misc Gen Merchandise - Def,B&m Retail Ltd,Supplies and Services related expenditure,04/10/2021,45.82,Director of Children's Services and Education
Other Supplies,Misc Gen Merchandise - Def,Wilko Retail Limited,Supplies and Services related expenditure,04/10/2021,60,Director of Children's Services and Education
Other Supplies,Discount Stores,Argos Ltd,Supplies and Services related expenditure,04/10/2021,82.49,Director of Children's Services and Education
Facilities/Repair Supplies,Misc Home Furnishing,Tillys Beds Ltd,Supplies and Services related expenditure,04/10/2021,130,Director of Children's Services and Education
Business To Business Eqpt/Furn,Durable Goods - Default,Future Safety Ltd,Supplies and Services related expenditure,04/10/2021,157.68,Director of Portsmouth International Port
Business To Business Eqpt/Furn,Durable Goods - Default,Future Safety Ltd,Supplies and Services related expenditure,04/10/2021,3.78,Director of Portsmouth International Port
Transportation Conveyor,Passenger Railways,Trainline,Transport related expenditure,04/10/2021,18.45,Director of Regeneration
Auto/Vehicle Expenses,Tire Retread/Repair Shops,Setyres,Transport related expenditure,04/10/2021,64.97,"Director of Culture, Leisure & Regulatory Services"
Medical,Lab/Med/Hospital Equipment,Wightman & Parrish,Premises related expenditure,04/10/2021,180.42,"Director of Housing, Neighbourhood and Building Services"
Other Supplies,Misc Speciality Retail,Amznbusiness,Supplies and Services related expenditure,04/10/2021,4.49,Director of Children's Services and Education
Hotels And Motels,Premier Travel Inns,Premier Inn 44536680,Supplies and Services related expenditure,04/10/2021,51.5,"Director of Culture, Leisure & Regulatory Services"
Hotels And Motels,Premier Travel Inns,Premier Inn 44536680,Supplies and Services related expenditure,04/10/2021,65.5,"Director of Culture, Leisure & Regulatory Services"
Miscellaneous,Other Direct Marketers,Amazon.Co.Uk,Supplies and Services related expenditure,04/10/2021,7.2,Director of Children's Services and Education
Type of Retail Store,Grocery Stores/Supermarkets,Tesco Stores 6577,Supplies and Services related expenditure,04/10/2021,11.5,Director of Children's Services and Education
Government Service,Tax Payments,Dvla Vehicle Tax,Transport related expenditure,04/10/2021,277.5,"Director of Housing, Neighbourhood and Building Services"
Government Service,Tax Payments,Dvla Vehicle Tax,Transport related expenditure,04/10/2021,277.5,"Director of Housing, Neighbourhood and Building Services"
Other Supplies,Misc Speciality Retail,Value Products Ltd,Supplies and Services related expenditure,04/10/2021,323,"Director of Housing, Neighbourhood and Building Services"
Eating And Drinking Places,Fast Food Restaurants,Just Eat,Agency and Third Party Payments related expenditure,04/10/2021,8.09,Director of Children's Services and Education
Transportation Conveyor,Bus Lines/Charter/Tour,The Provincial Bus,Transport related expenditure,04/10/2021,18,Director of Children's Services and Education
Airlines,Airlines And Air Carriers,Loganair,Transport related expenditure,04/10/2021,372.16,Director of Children's Services and Education
Business To Business Eqpt/Furn,Stationery/Office Supplies,Www.Banneruk.Com,Supplies and Services related expenditure,04/10/2021,24.66,Director of Adult Care
Other Supplies,Misc Speciality Retail,Amznmktplace,Supplies and Services related expenditure,04/10/2021,134.99,Director of Adult Care
Type of Retail Store,Grocery Stores/Supermarkets,Asda Groceries Online,Supplies and Services related expenditure,04/10/2021,-3,Director of Children's Services and Education
Type of Retail Store,Grocery Stores/Supermarkets,Asda Groceries Online,Supplies and Services related expenditure,04/10/2021,16.2,Director of Children's Services and Education
Type of Retail Store,Grocery Stores/Supermarkets,Asda Groceries Online,Supplies and Services related expenditure,04/10/2021,98.9,Director of Children's Services and Education
Type of Retail Store,Grocery Stores/Supermarkets,Tesco Store 3055,Supplies and Services related expenditure,04/10/2021,10.4,Director of Children's Services and Education
Equipment And Furniture,Household Appliance Stores,Ao Retail Limited,Supplies and Services related expenditure,04/10/2021,974,Director of Adult Care
Eating And Drinking Places,Eating Places/Restaurants,Ceanos,Supplies and Services related expenditure,04/10/2021,4.26,Director of Portsmouth International Port
Personal Service Provider,Mgmt/Consult/Public Rel Ser,Cruises News,Supplies and Services related expenditure,04/10/2021,381.78,Director of Portsmouth International Port
Business To Business Eqpt/Furn,Computer Software Stores,Sp * Gearuk,Supplies and Services related expenditure,04/10/2021,42.46,"Director of Housing, Neighbourhood and Building Services"
Other Supplies,Misc Speciality Retail,Www.Collegekitsdirect.,Supplies and Services related expenditure,04/10/2021,169.23,"Director of Housing, Neighbourhood and Building Services"
Automobile Services & Supplies,Service Stations,Tesco Pfs 4274,Supplies and Services related expenditure,04/10/2021,1.63,"Director of Housing, Neighbourhood and Building Services"
Automobile Services & Supplies,Service Stations,Tesco Pfs 4274,Transport related expenditure,04/10/2021,26.81,"Director of Housing, Neighbourhood and Building Services"
Type of Retail Store,Grocery Stores/Supermarkets,Tesco Store 3055,Supplies and Services related expenditure,04/10/2021,60.71,Director of Children's Services and Education
Type of Retail Store,Grocery Stores/Supermarkets,Tesco Store 3055,Supplies and Services related expenditure,04/10/2021,5,Director of Children's Services and Education
Other Supplies,Catalog Merchant,Www.Nisbets.Com,Supplies and Services related expenditure,04/10/2021,45.98,Director of Adult Care
Other Supplies,Catalog Merchant,Www.Nisbets.Com,Supplies and Services related expenditure,04/10/2021,31.96,Director of Adult Care
Business To Business Facility/,Industrial Supplies - Def,Arco Limited (Ahpp),Supplies and Services related expenditure,04/10/2021,88.36,Director of Portsmouth International Port
Business Expenses/Services,Postage Stamps,Post Office Counter,Supplies and Services related expenditure,04/10/2021,7.65,Director of Portsmouth International Port
Type of Retail Store,Grocery Stores/Supermarkets,Tesco Store 3539,Supplies and Services related expenditure,04/10/2021,-2.35,Director of Children's Services and Education
Type of Retail Store,Grocery Stores/Supermarkets,Tesco Store 3055,Supplies and Services related expenditure,04/10/2021,5.32,Director of Children's Services and Education
Type of Retail Store,Grocery Stores/Supermarkets,Tesco Store 3055,Supplies and Services related expenditure,04/10/2021,27.85,Director of Children's Services and Education
Type of Retail Store,Grocery Stores/Supermarkets,Tesco Store 3055,Supplies and Services related expenditure,04/10/2021,13.8,Director of Children's Services and Education
Type of Retail Store,Grocery Stores/Supermarkets,Tesco Store 3055,Supplies and Services related expenditure,04/10/2021,26.8,Director of Children's Services and Education
Type of Retail Store,Grocery Stores/Supermarkets,Tesco Store 3055,Supplies and Services related expenditure,04/10/2021,30.7,Director of Children's Services and Education
Business To Business Eqpt/Furn,Stationery/Office Supplies,Www.Banneruk.Com,Supplies and Services related expenditure,04/10/2021,183.11,Director of Portsmouth International Port
Auto/Vehicle Expenses,Automated Fuel Dispensers,Asda Petrol 4583,Transport related expenditure,04/10/2021,34.17,"Director of Culture, Leisure & Regulatory Services"
Business Expenses/Services,Courier Services,Parcelforce Wl,Supplies and Services related expenditure,04/10/2021,10.95,Director of Portsmouth International Port
Miscellaneous,Continuity/Subscription Mercht,Mailchimp,Supplies and Services related expenditure,04/10/2021,56.7,"Director of Culture, Leisure & Regulatory Services"
Facilities/Repair Supplies,Hardware Stores,Home Bargains,Premises related expenditure,04/10/2021,24.35,Director of Children's Services and Education
Facilities/Repair Supplies,Hardware Stores,Home Bargains,Supplies and Services related expenditure,04/10/2021,7.95,Director of Children's Services and Education
Facilities/Repair Supplies,Hardware Stores,Home Bargains,Supplies and Services related expenditure,04/10/2021,5.7,Director of Children's Services and Education
Facilities/Repair Supplies,Hardware Stores,Home Bargains,Supplies and Services related expenditure,04/10/2021,29.01,Director of Children's Services and Education
Type of Retail Store,Grocery Stores/Supermarkets,Aldi Stores Ltd,Supplies and Services related expenditure,04/10/2021,94.02,Director of Children's Services and Education
Government Service,Business/Secretarial School,Highspeedtraining.Co.U,Supplies and Services related expenditure,04/10/2021,30,Director of Children's Services and Education
Other Supplies,Wholesale Clubs,The Fruit Basket,Supplies and Services related expenditure,04/10/2021,43.77,"Director of Culture, Leisure & Regulatory Services"
Type of Retail Store,Grocery Stores/Supermarkets,Tesco Gift Card,Supplies and Services related expenditure,04/10/2021,50,Director of Children's Services and Education
Type of Retail Store,Grocery Stores/Supermarkets,Tesco Store 3055,Supplies and Services related expenditure,04/10/2021,6.94,Director of Adult Care
Utility,Phone Serv/Equip Utility,Zoom.Us 888-799-9666,Supplies and Services related expenditure,04/10/2021,11.99,Director of Children's Services and Education
Type of Retail Store,Grocery Stores/Supermarkets,Lidl Gb Portsmouth,Supplies and Services related expenditure,04/10/2021,4.15,Director of Adult Care
Type of Retail Store,Grocery Stores/Supermarkets,Sainsburys S/mkts,Supplies and Services related expenditure,04/10/2021,4.5,Director of Children's Services and Education
Other Supplies,Misc Speciality Retail,Amznbusiness,Supplies and Services related expenditure,04/10/2021,4.92,Director of Children's Services and Education
Type of Retail Store,Hobby/Toy/Game Stores,Sensory Direct,Supplies and Services related expenditure,04/10/2021,21.96,Director of Children's Services and Education
Business Expenses/Services,Books/Periodicals/Newspapers,Keda Publications-Kp,Supplies and Services related expenditure,04/10/2021,262,Director of Children's Services and Education
Other Supplies,Misc Speciality Retail,Amznmktplace,Supplies and Services related expenditure,04/10/2021,26.99,Director of Children's Services and Education
Other Supplies,Misc Speciality Retail,Amznmktplace,Supplies and Services related expenditure,04/10/2021,27.47,Director of Children's Services and Education
Business Expenses/Services,Books/Periodicals/Newspapers,Thenationalcurriculum.,Supplies and Services related expenditure,04/10/2021,64.95,Director of Children's Services and Education
Other Supplies,Discount Stores,Argos Ltd,Supplies and Services related expenditure,04/10/2021,25,Director of Children's Services and Education
Facilities/Repair Supplies,Misc Home Furnishing,Sp * Lights4fun,Supplies and Services related expenditure,04/10/2021,22.47,Director of Children's Services and Education
Other Supplies,Misc Speciality Retail,Amznmktplace,Supplies and Services related expenditure,04/10/2021,16.65,Director of Children's Services and Education
Other Supplies,Misc Speciality Retail,Amznmktplace,Supplies and Services related expenditure,04/10/2021,23.3,Director of Children's Services and Education
Other Supplies,Misc Speciality Retail,Amznmktplace,Supplies and Services related expenditure,04/10/2021,49.99,Director of Children's Services and Education
Eating And Drinking Places,Fast Food Restaurants,Chickn Box,Transport related expenditure,04/10/2021,13.29,Director of Children's Services and Education
Transportation Conveyor,Passenger Railways,Swrailwayselfserve,Transport related expenditure,04/10/2021,55.67,Director of Children's Services and Education
Type of Retail Store,Grocery Stores/Supermarkets,Iceland,Supplies and Services related expenditure,04/10/2021,15.49,"Director of Housing, Neighbourhood and Building Services"
Type of Retail Store,Grocery Stores/Supermarkets,Tesco Stores 6577,Supplies and Services related expenditure,04/10/2021,0.65,Director of Adult Care
Type of Retail Store,Grocery Stores/Supermarkets,Asda Superstore,Supplies and Services related expenditure,04/10/2021,2.92,Director of Adult Care
Facilities/Repair Supplies,Home Supply Warehouse Stores,B & Q 1260,Premises related expenditure,04/10/2021,24.54,Director of Children's Services and Education
Facilities/Repair Supplies,Lumber/Build. Supply Stores,Screwfix Direct,Premises related expenditure,04/10/2021,33.32,Director of Children's Services and Education
Facilities/Repair Supplies,Hardware Stores,Toolstation Uk,Premises related expenditure,04/10/2021,71.05,Director of Children's Services and Education
Business Expenses/Services,Stationery Stores,Www.Tts-Groups.Co.Uk,Supplies and Services related expenditure,04/10/2021,-195.54,Director of Adult Care
Type of Retail Store,Grocery Stores/Supermarkets,Tesco Store 3055,Supplies and Services related expenditure,04/10/2021,34.31,Director of Children's Services and Education
Type of Retail Store,Grocery Stores/Supermarkets,Tesco Store 3055,Supplies and Services related expenditure,04/10/2021,68.92,Director of Children's Services and Education
Transportation Conveyor,Passenger Railways,Thetrainline.Com,Transport related expenditure,04/10/2021,14.64,Director of Regeneration
Transportation Conveyor,Passenger Railways,Www.Southwesternrailwa,Transport related expenditure,04/10/2021,26.17,Director of Regeneration
Transportation Conveyor,Taxicabs/Limousines,Iz *ahmad Nasir Mubarak,Transport related expenditure,04/10/2021,27.5,Director of Regeneration
Facilities/Repair Supplies,Home Supply Warehouse Stores,B & Q 1260,Supplies and Services related expenditure,04/10/2021,11.67,"Director of Housing, Neighbourhood and Building Services"
Other Supplies,Misc Speciality Retail,Amznmktplace,Supplies and Services related expenditure,04/10/2021,27.46,Director of Children's Services and Education
Type of Retail Store,Grocery Stores/Supermarkets,Tesco Store 3048,Supplies and Services related expenditure,04/10/2021,13,Director of Children's Services and Education
Government Service,Govt Serv - Default,Portsmouth City Co,Transport related expenditure,04/10/2021,63.33,Director of Children's Services and Education
Other Supplies,Misc Speciality Retail,Amznmktplace,Supplies and Services related expenditure,04/10/2021,13.08,Director of Adult Care
Other Supplies,Misc Speciality Retail,Amz*tukai,Supplies and Services related expenditure,04/10/2021,-18.08,Director of Adult Care
Utility,Phone Serv/Equip Utility,O2,Supplies and Services related expenditure,04/10/2021,25.93,Director of Children's Services and Education
Facilities/Repair Supplies,Home Supply Warehouse Stores,B & Q 1260,Premises related expenditure,04/10/2021,12.67,Director of Adult Care
Other Supplies,Misc Speciality Retail,Amznmktplace,Supplies and Services related expenditure,04/10/2021,70.44,"Director of Culture, Leisure & Regulatory Services"
Transportation Conveyor,"Parking Lots, Meters, Garages",Paybyphone,Transport related expenditure,04/10/2021,1.53,Solent LEP
Transportation Conveyor,"Parking Lots, Meters, Garages",Paybyphone,Transport related expenditure,04/10/2021,5.33,Solent LEP
Transportation Conveyor,Transportation Svcs - Default,Red Funnel Group,Transport related expenditure,04/10/2021,27.8,Solent LEP
Other Supplies,Misc Speciality Retail,Amznmktplace,Premises related expenditure,04/10/2021,17.99,Director of Children's Services and Education
Transportation Conveyor,Passenger Railways,Sw Railway App,Transport related expenditure,04/10/2021,6.6,Director of Children's Services and Education
Transportation Conveyor,Bus Lines/Charter/Tour,First Bus - Web,Transport related expenditure,04/10/2021,17,Director of Children's Services and Education
Type of Retail Store,Grocery Stores/Supermarkets,Tesco Store 3048,Supplies and Services related expenditure,04/10/2021,20,Director of Children's Services and Education
Type of Retail Store,Grocery Stores/Supermarkets,Asda Groceries Online,Supplies and Services related expenditure,04/10/2021,58.6,Director of Children's Services and Education
Eating And Drinking Places,Eating Places/Restaurants,Chilango Ltd.,Supplies and Services related expenditure,04/10/2021,6.62,Director of Children's Services and Education
Transportation Conveyor,Passenger Railways,Swrailwayselfserve,Supplies and Services related expenditure,04/10/2021,34,Director of Children's Services and Education
Type of Retail Store,Grocery Stores/Supermarkets,Iceland Foods,Supplies and Services related expenditure,04/10/2021,-0.11,Director of Children's Services and Education
Type of Retail Store,Grocery Stores/Supermarkets,Tesco Store 3055,Supplies and Services related expenditure,04/10/2021,58.11,Director of Children's Services and Education
Caterers Food,Caterers,Booker Limited Portsmouth,Supplies and Services related expenditure,04/10/2021,72.37,Director of Children's Services and Education
Other Supplies,Misc Speciality Retail,Amz*universal Office P,Supplies and Services related expenditure,04/10/2021,-70.49,"Director of Housing, Neighbourhood and Building Services"
Business Services,Business Services - Default,Www.Phs.Co.Uk,Premises related expenditure,04/10/2021,385.24,Director of Adult Care
Business Expenses/Services,Postage Stamps,Post Office Counter,Supplies and Services related expenditure,04/10/2021,2.25,Director of Children's Services and Education
Other Supplies,Misc Speciality Retail,Amznmktplace,Supplies and Services related expenditure,04/10/2021,15.41,Director of Regeneration
Business To Business Eqpt/Furn,Stationery/Office Supplies,Www.Banneruk.Com,Supplies and Services related expenditure,04/10/2021,18.1,Director of Children's Services and Education
Type of Retail Store,Grocery Stores/Supermarkets,Wm Morrisons Store,Supplies and Services related expenditure,04/10/2021,3.33,Director of Children's Services and Education
Type of Retail Store,Grocery Stores/Supermarkets,Wm Morrisons Store,Supplies and Services related expenditure,04/10/2021,3.17,Director of Children's Services and Education
Type of Retail Store,Grocery Stores/Supermarkets,Wm Morrisons Store,Supplies and Services related expenditure,04/10/2021,1.34,Director of Children's Services and Education
Type of Retail Store,Grocery Stores/Supermarkets,Asda Groceries Online,Supplies and Services related expenditure,04/10/2021,30.17,Director of Children's Services and Education
Type of Retail Store,Grocery Stores/Supermarkets,Asda Groceries Online,Supplies and Services related expenditure,04/10/2021,44.24,Director of Children's Services and Education
Clothing Services,Mens/Womens Clothing Stores,River Island 400,Supplies and Services related expenditure,03/10/2021,75,Director of Children's Services and Education
Medical,Lab/Med/Hospital Equipment,Wightman & Parrish Ltd,Supplies and Services related expenditure,04/10/2021,70.4,"Director of Housing, Neighbourhood and Building Services"
Medical,Lab/Med/Hospital Equipment,Wightman & Parrish Ltd,Supplies and Services related expenditure,04/10/2021,113.23,"Director of Housing, Neighbourhood and Building Services"
Business To Business Facility/,Industrial Supplies - Def,Arco Limited (Ahpp),Supplies and Services related expenditure,04/10/2021,2.48,Director of Portsmouth International Port
Business To Business Facility/,Industrial Supplies - Def,Arco Limited (Ahpp),Supplies and Services related expenditure,04/10/2021,22.99,Director of Portsmouth International Port
Business To Business Facility/,Industrial Supplies - Def,Arco Limited (Ahpp),Supplies and Services related expenditure,04/10/2021,22.99,Director of Portsmouth International Port
Business To Business Facility/,Industrial Supplies - Def,Arco Limited (Ahpp),Supplies and Services related expenditure,04/10/2021,22.99,Director of Portsmouth International Port
Business To Business Facility/,Industrial Supplies - Def,Arco Limited (Ahpp),Supplies and Services related expenditure,04/10/2021,37.79,Director of Portsmouth International Port
Business To Business Facility/,Industrial Supplies - Def,Arco Limited (Ahpp),Supplies and Services related expenditure,04/10/2021,37.79,Director of Portsmouth International Port
Business To Business Facility/,Industrial Supplies - Def,Arco Limited (Ahpp),Supplies and Services related expenditure,04/10/2021,41.83,Director of Portsmouth International Port
Business To Business Facility/,Industrial Supplies - Def,Arco Limited (Ahpp),Supplies and Services related expenditure,04/10/2021,51.32,Director of Portsmouth International Port
Business To Business Facility/,Industrial Supplies - Def,Arco Limited (Ahpp),Supplies and Services related expenditure,04/10/2021,106.09,Director of Portsmouth International Port
Business Expenses/Services,Stationery Stores,Whsmith.Co.Uk,Supplies and Services related expenditure,04/10/2021,29,Director of Children's Services and Education
Transportation Conveyor,Passenger Railways,Southern Railway Web,Supplies and Services related expenditure,04/10/2021,9.8,Director of Finance & Resources
Other Supplies,Misc Speciality Retail,Amznbusiness,Supplies and Services related expenditure,04/10/2021,4.92,Director of Children's Services and Education
Other Supplies,Misc Speciality Retail,Amznbusiness,Supplies and Services related expenditure,04/10/2021,4.92,Director of Children's Services and Education
Transportation Conveyor,Passenger Railways,Trainline.Com,Transport related expenditure,04/10/2021,9.86,Director of Regeneration
Transportation Conveyor,Passenger Railways,Trainline.Com,Transport related expenditure,04/10/2021,14.14,Director of Regeneration
Transportation Conveyor,Passenger Railways,Trainline.Com,Transport related expenditure,04/10/2021,24.26,Director of Regeneration
Clothing Services,Family Clothing Stores,Primark,Supplies and Services related expenditure,04/10/2021,25,Director of Children's Services and Education
Medical,Lab/Med/Hospital Equipment,Wightman & Parrish,Premises related expenditure,05/10/2021,25.71,"Director of Housing, Neighbourhood and Building Services"
Government Service,Govt Serv - Default,Www.Solentgo.Co.Uk,Transport related expenditure,05/10/2021,2,Director of Finance & Resources
Airlines,British Awys,British A,Supplies and Services related expenditure,05/10/2021,32,Director of Portsmouth International Port
Other Supplies,Misc Speciality Retail,Amznmktplace Amazon.Co.Uk,Supplies and Services related expenditure,05/10/2021,165.72,Director of Portsmouth International Port
Transportation Conveyor,Passenger Railways,Thetrainline.Com,Supplies and Services related expenditure,05/10/2021,10.12,Director of Children's Services and Education
Facilities/Repair Supplies,Hardware Stores,Home Bargains Online,Supplies and Services related expenditure,05/10/2021,9.57,Director of Children's Services and Education
Facilities/Repair Supplies,Hardware Stores,Home Bargains Online,Supplies and Services related expenditure,05/10/2021,29.54,Director of Children's Services and Education
Facilities/Repair Supplies,Hardware Stores,Home Bargains Online,Supplies and Services related expenditure,05/10/2021,29.54,Director of Children's Services and Education
Type of Retail Store,Hobby/Toy/Game Stores,Education Essentials Ltd,Supplies and Services related expenditure,05/10/2021,52.95,Director of Children's Services and Education
Other Supplies,Discount Stores,Www.Theworks.Co.Uk,Supplies and Services related expenditure,05/10/2021,108,Director of Children's Services and Education
Business Expenses/Services,Stationery Stores,Www.Ryman.Co.Uk,Supplies and Services related expenditure,05/10/2021,128.16,Director of Children's Services and Education
Facilities/Repair Supplies,Hardware Stores,Toolstation Uk,Supplies and Services related expenditure,05/10/2021,357.47,Director of Children's Services and Education
Business To Business Eqpt/Furn,Computers/Peripherals/Software,Issuu,Supplies and Services related expenditure,05/10/2021,-171.96,Director of Corporate Services
Other Supplies,Misc Gen Merchandise - Def,Protek Supplies,Supplies and Services related expenditure,05/10/2021,24,Director of Children's Services and Education
Digital Goods,"Digital Goods - Media, Books, Movies, Music",Spotify P17517554a,Supplies and Services related expenditure,05/10/2021,16.99,Director of Children's Services and Education
Type of Retail Store,Music Stores/Pianos,Joytunes,Supplies and Services related expenditure,05/10/2021,17.99,Director of Children's Services and Education
Other Supplies,Misc Speciality Retail,Amznmktplace,Supplies and Services related expenditure,05/10/2021,8.58,Director of Children's Services and Education
Freight/Courier/Warehouse Svcs,Public Warehousing,Big Yellow - Portsmout,Premises related expenditure,05/10/2021,34,"Director of Housing, Neighbourhood and Building Services"
Freight/Courier/Warehouse Svcs,Public Warehousing,Big Yellow - Portsmout,Premises related expenditure,05/10/2021,436,"Director of Housing, Neighbourhood and Building Services"
Facilities Maintenance,Specialty Cleaning/Polishing,Sp * Candor Services,Supplies and Services related expenditure,05/10/2021,99.66,"Director of Housing, Neighbourhood and Building Services"
Business To Business Facility/,Hardware Equipment/Supplies,Zoro Uk,Supplies and Services related expenditure,05/10/2021,109.98,Director of Regeneration
Business To Business Services,Misc Publishing & Printing,Www.Solopress.Com,Supplies and Services related expenditure,05/10/2021,15.86,"Director of Culture, Leisure & Regulatory Services"
Business Services,Advertising Services,Linkedin-688,Supplies and Services related expenditure,05/10/2021,89.89,Director of Corporate Services
Type of Retail Store,Grocery Stores/Supermarkets,Tesco Gift Card,Supplies and Services related expenditure,05/10/2021,40,Director of Children's Services and Education
Transportation Conveyor,Passenger Railways,Swrailway Tck Off,Transport related expenditure,05/10/2021,36.4,Director of Children's Services and Education
Transportation Conveyor,Local Commuter Transport,Www.Hovertravel.Com,Transport related expenditure,05/10/2021,50.2,Director of Children's Services and Education
Transportation Conveyor,Local Commuter Transport,Www.Hovertravel.Com,Transport related expenditure,05/10/2021,50.2,Director of Children's Services and Education
Transportation Conveyor,Passenger Railways,Swrailway Tck Off,Transport related expenditure,05/10/2021,153.2,Director of Children's Services and Education
Business To Business Eqpt/Furn,Stationery/Office Supplies,Www.Banneruk.Com,Supplies and Services related expenditure,05/10/2021,69.8,Director of Adult Care
Other Supplies,Misc Speciality Retail,Amznmktplace,Supplies and Services related expenditure,05/10/2021,19.57,"Director of Housing, Neighbourhood and Building Services"
Facilities/Repair Supplies,Glass/Paint/Wallpaper Store,Johnstones Dec Centre,Premises related expenditure,05/10/2021,175,"Director of Housing, Neighbourhood and Building Services"
Other Supplies,Misc Speciality Retail,Amznmktplace,Supplies and Services related expenditure,05/10/2021,108.32,Director of Adult Care
Digital Goods,"Digital Goods - Media, Books, Movies, Music",Eplatform Elibraries,Supplies and Services related expenditure,05/10/2021,390.62,"Director of Culture, Leisure & Regulatory Services"
Business To Business Eqpt/Furn,Computers/Peripherals/Software,Replacementlaptopkeys.Com,Supplies and Services related expenditure,05/10/2021,-13.76,Director of Corporate Services
Type of Retail Store,Artist/Craft Shops,Easichalk,Supplies and Services related expenditure,05/10/2021,25.09,"Director of Culture, Leisure & Regulatory Services"
Business Services,Business Services - Default,Printdesigns,Supplies and Services related expenditure,05/10/2021,195,"Director of Culture, Leisure & Regulatory Services"
Utility,Phone Serv/Equip Utility,Virgin Media Pymts,Supplies and Services related expenditure,05/10/2021,33.33,Director of Children's Services and Education
Other Supplies,Department Stores,Www.Johnlewis.Com,Supplies and Services related expenditure,05/10/2021,439,Director of Adult Care
Business To Business Eqpt/Furn,Stationery/Office Supplies,Www.Banneruk.Com,Supplies and Services related expenditure,05/10/2021,25.85,"Director of Housing, Neighbourhood and Building Services"
Government Service,Govt Serv - Default,Portsmouth City Co,Transport related expenditure,05/10/2021,31.67,Director of Children's Services and Education
Utility,Utilities/Elec/Gas/H2O/Sani,Https://Customerhu,Premises related expenditure,05/10/2021,179.6,Director of Children's Services and Education
Airlines,British Awys,British A,Supplies and Services related expenditure,05/10/2021,169.92,Director of Portsmouth International Port
Government Service,Govt Serv - Default,Gen Register Office,Supplies and Services related expenditure,05/10/2021,11,"Director of Housing, Neighbourhood and Building Services"
Transportation Conveyor,Passenger Railways,Swrailway Tck Off,Supplies and Services related expenditure,05/10/2021,11.7,"Director of Housing, Neighbourhood and Building Services"
Clothing Services,Womens Ready To Wear Stores,New Look 1787,Supplies and Services related expenditure,05/10/2021,23.41,"Director of Housing, Neighbourhood and Building Services"
Type of Retail Store,Grocery Stores/Supermarkets,Asda Groceries Online,Supplies and Services related expenditure,05/10/2021,29.7,Director of Adult Care
Type of Retail Store,Grocery Stores/Supermarkets,Asda Groceries Online,Supplies and Services related expenditure,05/10/2021,75.05,Director of Adult Care
Equipment And Furniture,Equip/Furn Rent/Lease Serv,Alto Handling Limited,Premises related expenditure,05/10/2021,123,Director of Portsmouth International Port
Type of Retail Store,Grocery Stores/Supermarkets,Tesco Stores 4579,Supplies and Services related expenditure,05/10/2021,5.32,Director of Adult Care
Type of Retail Store,Grocery Stores/Supermarkets,Tesco Stores 4579,Supplies and Services related expenditure,05/10/2021,9.17,Director of Adult Care
Business To Business Facility/,Industrial Supplies - Def,Arco Limited (Ahpp),Supplies and Services related expenditure,05/10/2021,71.18,"Director of Housing, Neighbourhood and Building Services"
Type of Retail Store,Grocery Stores/Supermarkets,Tesco Stores 4579,Supplies and Services related expenditure,05/10/2021,14.03,Director of Children's Services and Education
Type of Retail Store,Grocery Stores/Supermarkets,Tesco Store 3055,Supplies and Services related expenditure,05/10/2021,3.5,Director of Children's Services and Education
Eating And Drinking Places,Pkg Stores/Beer/Wine/Liquor,Krishna,Supplies and Services related expenditure,05/10/2021,3.29,Director of Children's Services and Education
Miscellaneous,Member Organizations - Def,Citizencard,Agency and Third Party Payments related expenditure,05/10/2021,30,Director of Children's Services and Education
Other Supplies,Misc Speciality Retail,Amznmktplace,Supplies and Services related expenditure,05/10/2021,8.49,Director of Adult Care
Other Supplies,Misc Speciality Retail,Amznmktplace Amazon.Co.Uk,Supplies and Services related expenditure,05/10/2021,-19.53,Director of Children's Services and Education
Other Supplies,Misc Speciality Retail,Amznbusiness,Supplies and Services related expenditure,05/10/2021,101.64,Director of Children's Services and Education
Government Service,Govt Serv - Default,Portsmouth City Co,Transport related expenditure,05/10/2021,31.67,Director of Children's Services and Education
Transportation Conveyor,Local Commuter Transport,Www.Hovertravel.Com,Supplies and Services related expenditure,05/10/2021,25.1,Director of Children's Services and Education
Other Supplies,Misc Speciality Retail,Amznbusiness,Supplies and Services related expenditure,05/10/2021,99.96,Director of Portsmouth International Port
Other Supplies,Department Stores,Safetysuppl,Supplies and Services related expenditure,05/10/2021,142.95,Director of Portsmouth International Port
Business Expenses/Services,Stationery Stores,Sp * The Shredder Ware,Supplies and Services related expenditure,05/10/2021,210,Director of Portsmouth International Port
Facilities/Repair Supplies,Glass/Paint/Wallpaper Store,Paypal,Supplies and Services related expenditure,05/10/2021,380,Director of Adult Care
Type of Retail Store,Grocery Stores/Supermarkets,Sainsburys S/mkt,Supplies and Services related expenditure,05/10/2021,10.94,Director of Children's Services and Education
Other Supplies,Misc Gen Merchandise - Def,B&m 566 - Farlington,Supplies and Services related expenditure,05/10/2021,99.17,Director of Children's Services and Education
Type of Retail Store,Grocery Stores/Supermarkets,Asda Groceries Online,Supplies and Services related expenditure,05/10/2021,-0.58,Director of Children's Services and Education
Type of Retail Store,Grocery Stores/Supermarkets,Asda Groceries Online,Supplies and Services related expenditure,05/10/2021,37.52,Director of Children's Services and Education
Business To Business Facility/,Industrial Supplies - Def,Arco Limited (Ahpp),Supplies and Services related expenditure,05/10/2021,9.24,"Director of Culture, Leisure & Regulatory Services"
Government Service,Govt Serv - Default,Portsmouth City Co,Transport related expenditure,05/10/2021,31.67,Director of Children's Services and Education
Transportation Conveyor,"Parking Lots, Meters, Garages",Southampton University,Transport related expenditure,05/10/2021,3.75,Director of Children's Services and Education
Business Expenses/Services,News Dealers/Newsstands,Wh Smith,Supplies and Services related expenditure,05/10/2021,19.47,Director of Children's Services and Education
Transportation Conveyor,"Parking Lots, Meters, Garages",Cder Group Limited.,Supplies and Services related expenditure,05/10/2021,268.33,Director of Children's Services and Education
Government Service,Govt Serv - Default,Westminster City Counc,Supplies and Services related expenditure,05/10/2021,16,Director of Children's Services and Education
Transportation Conveyor,Passenger Railways,Thetrainline.Com,Supplies and Services related expenditure,05/10/2021,19.63,Director of Children's Services and Education
Other Supplies,Misc Speciality Retail,Amznmktplace,Supplies and Services related expenditure,05/10/2021,8.32,Director of Children's Services and Education
Other Supplies,Misc Speciality Retail,Amznmktplace,Supplies and Services related expenditure,05/10/2021,52.72,Director of Children's Services and Education
Equipment And Furniture,Equip/Furn Rent/Lease Serv,Speedy Asset Services Ltd,Supplies and Services related expenditure,05/10/2021,105,Director of Children's Services and Education
Equipment And Furniture,Furniture/Equip Stores,Rapid Racking,Supplies and Services related expenditure,05/10/2021,109,Director of Children's Services and Education
Business To Business Facility/,Construction Materials - Def,Beaver Architectural,Supplies and Services related expenditure,05/10/2021,81,"Director of Housing, Neighbourhood and Building Services"
Type of Retail Store,Grocery Stores/Supermarkets,Aldi Stores Ltd,Supplies and Services related expenditure,05/10/2021,5.08,Director of Children's Services and Education
Type of Retail Store,Grocery Stores/Supermarkets,Aldi Stores Ltd,Supplies and Services related expenditure,05/10/2021,8.42,Director of Children's Services and Education
Medical,Lab/Med/Hospital Equipment,Wightman & Parrish Ltd,Premises related expenditure,05/10/2021,46.2,"Director of Housing, Neighbourhood and Building Services"
Other Supplies,Discount Stores,Argos Ltd,Supplies and Services related expenditure,05/10/2021,65.77,"Director of Culture, Leisure & Regulatory Services"
Transportation Conveyor,Passenger Railways,Trainline.Com,Supplies and Services related expenditure,05/10/2021,28.35,Director of Children's Services and Education
Transportation Conveyor,Taxicabs/Limousines,Uber *trip,Supplies and Services related expenditure,05/10/2021,4,"Director of Housing, Neighbourhood and Building Services"
Type of Retail Store,Grocery Stores/Supermarkets,Lidl Gb Portsmouth,Supplies and Services related expenditure,05/10/2021,43.26,"Director of Housing, Neighbourhood and Building Services"
Other Supplies,Discount Stores,Poundwise Milton,Supplies and Services related expenditure,05/10/2021,9.43,Director of Children's Services and Education
Type of Retail Store,Grocery Stores/Supermarkets,Asda Stores,Supplies and Services related expenditure,05/10/2021,16.67,"Director of Housing, Neighbourhood and Building Services"
Business To Business Facility/,Industrial Supplies - Def,Arco Limited (Sap),Supplies and Services related expenditure,05/10/2021,172.14,"Director of Housing, Neighbourhood and Building Services"
Utility,Computer Network/Info Svcs,Surrey Cc Card Pay,Supplies and Services related expenditure,05/10/2021,11,Director of Regeneration
Automobile Services & Supplies,Service Stations,Shell Victory,Supplies and Services related expenditure,05/10/2021,7.2,Director of Portsmouth International Port
Facilities/Repair Supplies,Home Supply Warehouse Stores,B & Q 1260,Supplies and Services related expenditure,05/10/2021,20.39,Director of Regeneration
Business To Business Eqpt/Furn,Stationery/Office Supplies,Www.Banneruk.Com,Supplies and Services related expenditure,05/10/2021,42.02,Director of Adult Care
Business Expenses/Services,Postage Stamps,Post Office Counter,Supplies and Services related expenditure,05/10/2021,63.36,Director of Adult Care
Amusement/Entertainment,Theatrical Producers,Paypal,Employees related expenditure,05/10/2021,124.56,Director of Children's Services and Education
Caterers Food,Caterers,Olive Catering Services L,Supplies and Services related expenditure,05/10/2021,5.8,Director of Regeneration
Transportation Conveyor,Passenger Railways,Thetrainline.Com,Transport related expenditure,05/10/2021,-5.9,Director of Regeneration
Transportation Conveyor,Passenger Railways,Lul Ticket Machine,Transport related expenditure,05/10/2021,13.9,Director of Regeneration
Transportation Conveyor,"Parking Lots, Meters, Garages",Www.Portsmouthcc.Gov.U,Employees related expenditure,05/10/2021,3.8,Director of Children's Services and Education
Business To Business Facility/,Industrial Supplies - Def,Arco Limited (Sap),Supplies and Services related expenditure,05/10/2021,314.87,"Director of Housing, Neighbourhood and Building Services"
Facilities/Repair Supplies,Hardware Stores,Robert Dyas Holdng Ltd,Premises related expenditure,05/10/2021,10.82,Director of Children's Services and Education
Other Supplies,Misc Speciality Retail,Amznmktplace,Supplies and Services related expenditure,05/10/2021,124.12,Director of Children's Services and Education
Other Supplies,Misc Speciality Retail,Amznmktplace,Supplies and Services related expenditure,05/10/2021,8.98,Director of Adult Care
Business To Business Eqpt/Furn,Stationery/Office Supplies,Www.Banneruk.Com,Supplies and Services related expenditure,05/10/2021,22.92,Director of Adult Care
Miscellaneous,Charitable/Soc Service Orgs,Paypal,Supplies and Services related expenditure,05/10/2021,35,Director of Adult Care
Government Service,Schools - Default,Qualsafe Ltd,Employees related expenditure,05/10/2021,110,Director of Corporate Services
Government Service,Schools - Default,Www.Qualsafe.Com,Employees related expenditure,05/10/2021,152.78,Director of Corporate Services
Facilities/Repair Supplies,Home Supply Warehouse Stores,B & Q 1260,Premises related expenditure,05/10/2021,47.1,Director of Adult Care
Facilities/Repair Supplies,Home Supply Warehouse Stores,B & Q 1260,Premises related expenditure,05/10/2021,226.11,Director of Adult Care
Type of Retail Store,Grocery Stores/Supermarkets,Tesco Stores 4579,Supplies and Services related expenditure,05/10/2021,4.33,Director of Children's Services and Education
Type of Retail Store,Grocery Stores/Supermarkets,Tesco Stores 4579,Supplies and Services related expenditure,05/10/2021,15.88,Director of Children's Services and Education
Type of Retail Store,Grocery Stores/Supermarkets,Tesco Stores 4579,Supplies and Services related expenditure,05/10/2021,65.91,Director of Children's Services and Education
Facilities/Repair Supplies,Lumber/Build. Supply Stores,Screwfix Direct,Premises related expenditure,05/10/2021,94.97,"Director of Culture, Leisure & Regulatory Services"
Miscellaneous,Continuity/Subscription Mercht,Eig,Supplies and Services related expenditure,05/10/2021,11.35,Solent Freeport
Miscellaneous,Continuity/Subscription Mercht,Eig,Supplies and Services related expenditure,05/10/2021,11.35,Solent Freeport
Miscellaneous,Continuity/Subscription Mercht,Eig,Supplies and Services related expenditure,05/10/2021,24.12,Solent Freeport
Transportation Conveyor,"Parking Lots, Meters, Garages",Napier Parking Ltd Far,Supplies and Services related expenditure,05/10/2021,3.75,Director of Children's Services and Education
Eating And Drinking Places,Fast Food Restaurants,Costa Coffee,Supplies and Services related expenditure,05/10/2021,4.29,Director of Children's Services and Education
Transportation Conveyor,Passenger Railways,Swrailwayselfserve,Supplies and Services related expenditure,05/10/2021,18.67,Director of Children's Services and Education
Transportation Conveyor,Passenger Railways,Swrailwayselfserve,Supplies and Services related expenditure,05/10/2021,28.25,Director of Children's Services and Education
Type of Retail Store,Grocery Stores/Supermarkets,Tesco Store 3048,Supplies and Services related expenditure,05/10/2021,55.07,Director of Children's Services and Education
Caterers Food,Caterers,Sumup *baffins Farm Cate,Supplies and Services related expenditure,05/10/2021,190.5,"Director of Housing, Neighbourhood and Building Services"
Type of Retail Store,Grocery Stores/Supermarkets,Wm Morrisons Store,Supplies and Services related expenditure,05/10/2021,12.7,Director of Children's Services and Education
Other Supplies,Misc Speciality Retail,Amznmktplace,Supplies and Services related expenditure,05/10/2021,41.63,Director of Corporate Services
Type of Retail Store,Grocery Stores/Supermarkets,Sainsburys S/mkts,Supplies and Services related expenditure,05/10/2021,18.85,Director of Children's Services and Education
Government Service,Schools - Default,Skills Training Centre,Supplies and Services related expenditure,05/10/2021,3840,Director of Regeneration
Other Supplies,Department Stores,Southern Co-Op 0024,Supplies and Services related expenditure,05/10/2021,2.25,Director of Children's Services and Education
Transportation Conveyor,Local Commuter Transport,Www.Hovertravel.Com,Transport related expenditure,05/10/2021,25.1,Director of Children's Services and Education
Facilities/Repair Supplies,Lumber/Build. Supply Stores,Screwfix Dir Ltd,Premises related expenditure,05/10/2021,11.25,Director of Children's Services and Education
Other Supplies,Misc Speciality Retail,Amznmktplace,Supplies and Services related expenditure,05/10/2021,20,Director of Regeneration
Other Supplies,Misc Speciality Retail,Amznbusiness,Supplies and Services related expenditure,05/10/2021,11.26,Director of Children's Services and Education
Other Supplies,Department Stores,Southern Co-Op 0008,Supplies and Services related expenditure,05/10/2021,11.5,Director of Children's Services and Education
Other Supplies,Misc Speciality Retail,Amznmktplace,Supplies and Services related expenditure,06/10/2021,28.58,Director of Children's Services and Education
Business To Business Facility/,Industrial Supplies - Def,Arco Limited (Ahpp),Supplies and Services related expenditure,03/10/2021,10.44,Director of Portsmouth International Port
Other Supplies,Misc Speciality Retail,Amznbusiness,Supplies and Services related expenditure,05/10/2021,4.36,Director of Children's Services and Education
Business To Business Facility/,Industrial Supplies - Def,Arco Limited (Ahpp),Supplies and Services related expenditure,05/10/2021,100.16,"Director of Housing, Neighbourhood and Building Services"
Automobile Services & Supplies,Service Stations,Milton Road Servic,Supplies and Services related expenditure,05/10/2021,6.39,Director of Children's Services and Education
Business To Business Facility/,Electrical Parts/Equipment,Rs Components,Supplies and Services related expenditure,05/10/2021,765,Director of Regeneration
Other Supplies,Misc Speciality Retail,Amznbusiness,Supplies and Services related expenditure,05/10/2021,15.4,Director of Children's Services and Education
Other Supplies,Misc Speciality Retail,Amznbusiness,Supplies and Services related expenditure,05/10/2021,71.24,Director of Children's Services and Education
Business Services,Business Services - Default,Ghs Recycling Ltd,Agency and Third Party Payments related expenditure,06/10/2021,35,"Director of Housing, Neighbourhood and Building Services"
Facilities/Repair Supplies,Home Supply Warehouse Stores,B & Q 1260,Premises related expenditure,06/10/2021,4.56,Director of Adult Care
Utility,Phone Serv/Equip Utility,Www.Broadbandbuyer.Co.Uk,Supplies and Services related expenditure,06/10/2021,-2,"Director of Housing, Neighbourhood and Building Services"
Utility,Phone Serv/Equip Utility,Www.Broadbandbuyer.Co.Uk,Supplies and Services related expenditure,06/10/2021,176.64,"Director of Housing, Neighbourhood and Building Services"
Medical,Lab/Med/Hospital Equipment,Wightman & Parrish Ltd,Premises related expenditure,06/10/2021,368.4,"Director of Housing, Neighbourhood and Building Services"
Medical,Lab/Med/Hospital Equipment,Wightman & Parrish Ltd,Premises related expenditure,06/10/2021,59.88,"Director of Housing, Neighbourhood and Building Services"
Medical,Lab/Med/Hospital Equipment,Wightman & Parrish Ltd,Premises related expenditure,06/10/2021,196.55,"Director of Housing, Neighbourhood and Building Services"
Medical,Lab/Med/Hospital Equipment,Wightman & Parrish Ltd,Supplies and Services related expenditure,06/10/2021,384,"Director of Housing, Neighbourhood and Building Services"
Medical,Lab/Med/Hospital Equipment,Wightman & Parrish Ltd,Premises related expenditure,06/10/2021,439.43,"Director of Housing, Neighbourhood and Building Services"
Medical,Lab/Med/Hospital Equipment,Wightman & Parrish Ltd,Premises related expenditure,06/10/2021,757.54,"Director of Housing, Neighbourhood and Building Services"
Medical,Lab/Med/Hospital Equipment,Wightman & Parrish Ltd,Premises related expenditure,06/10/2021,894.25,"Director of Housing, Neighbourhood and Building Services"
Type of Retail Store,Fabric Stores,Hampshirefl,Supplies and Services related expenditure,06/10/2021,229.2,"Director of Housing, Neighbourhood and Building Services"
Utility,Phone Serv/Equip Utility,Zoom.Us 888-799-9666,Supplies and Services related expenditure,06/10/2021,11.99,Director of Children's Services and Education
Auto/Vehicle Expenses,Car Washes,Hilsea Hand Carwash,Transport related expenditure,06/10/2021,70,Director of Regeneration
Transportation Conveyor,"Parking Lots, Meters, Garages",Queen Alexandra Hospit,Supplies and Services related expenditure,06/10/2021,3.2,Director of Children's Services and Education
Transportation Conveyor,Passenger Railways,Thetrainline.Com,Supplies and Services related expenditure,06/10/2021,10.12,Director of Children's Services and Education
Type of Retail Store,Grocery Stores/Supermarkets,Tesco Stores 4579,Supplies and Services related expenditure,06/10/2021,40,Director of Children's Services and Education
Other Supplies,Misc Speciality Retail,Amznmktplace,Supplies and Services related expenditure,06/10/2021,7.91,Director of Children's Services and Education
Other Supplies,Misc Speciality Retail,Amznmktplace,Supplies and Services related expenditure,06/10/2021,9.89,Director of Children's Services and Education
Facilities/Repair Supplies,Home Supply Warehouse Stores,B & Q 1260,Premises related expenditure,06/10/2021,12.39,Director of Children's Services and Education
Type of Retail Store,Grocery Stores/Supermarkets,Tesco Stores 4579,Premises related expenditure,06/10/2021,5,Director of Children's Services and Education
Type of Retail Store,Grocery Stores/Supermarkets,Asda Groceries Online,Supplies and Services related expenditure,06/10/2021,67.66,Director of Children's Services and Education
Facilities/Repair Supplies,Home Supply Warehouse Stores,B & Q 1260,Transport related expenditure,06/10/2021,7.47,Director of Adult Care
Automobile Services & Supplies,Automobile Dealers And Leasing,Pentagon Ltd Fareham,Transport related expenditure,06/10/2021,83.13,Director of Adult Care
Business To Business Services,Misc Publishing & Printing,Www.Solopress.Com,Supplies and Services related expenditure,06/10/2021,-15.86,"Director of Culture, Leisure & Regulatory Services"
Type of Retail Store,Grocery Stores/Supermarkets,Tesco Stores 4611,Supplies and Services related expenditure,06/10/2021,20,Director of Children's Services and Education
Utility,Phone Serv/Equip Utility,Pageone,Supplies and Services related expenditure,06/10/2021,31.14,"Director of Culture, Leisure & Regulatory Services"
Government Service,Govt Serv - Default,Hampshire County Counc,Supplies and Services related expenditure,06/10/2021,11.86,Director of Children's Services and Education
Business Expenses/Services,Stationery Stores,Www.Tts-Groups.Co.Uk,Supplies and Services related expenditure,06/10/2021,29.95,Director of Children's Services and Education
Business Expenses/Services,Stationery Stores,Www.Crossboweducation.Com,Supplies and Services related expenditure,06/10/2021,47.52,Director of Children's Services and Education
Business Expenses/Services,Stationery Stores,Www.Tts-Groups.Co.Uk,Supplies and Services related expenditure,06/10/2021,47.93,Director of Children's Services and Education
Business Expenses/Services,Stationery Stores,Www.Tts-Groups.Co.Uk,Supplies and Services related expenditure,06/10/2021,133.82,Director of Children's Services and Education
Facilities/Repair Supplies,Home Supply Warehouse Stores,B & Q 1260,Supplies and Services related expenditure,06/10/2021,38.53,"Director of Housing, Neighbourhood and Building Services"
Government Service,Govt Serv - Default,Pcc Internet Payment,Supplies and Services related expenditure,06/10/2021,11,Director of Children's Services and Education
Other Supplies,Misc Speciality Retail,Amznmktplace,Supplies and Services related expenditure,06/10/2021,8.32,"Director of Culture, Leisure & Regulatory Services"
Other Supplies,Misc Speciality Retail,Amznmktplace,Supplies and Services related expenditure,06/10/2021,8.74,"Director of Culture, Leisure & Regulatory Services"
Auto/Vehicle Expenses,Toll And Bridge Fees,Dart-Charge,Supplies and Services related expenditure,06/10/2021,116.5,Director of Children's Services and Education
Eating And Drinking Places,Fast Food Restaurants,McDonalds,Supplies and Services related expenditure,06/10/2021,6.3,Director of Children's Services and Education
Hotels And Motels,Hotel Ibis,Hotel Ibis,Supplies and Services related expenditure,06/10/2021,200,Director of Children's Services and Education
Hotels And Motels,Hotel Ibis,Hotel Ibis,Supplies and Services related expenditure,06/10/2021,238.1,Director of Children's Services and Education
Business To Business Facility/,Electrical Parts/Equipment,Edmundson Electrical,Premises related expenditure,06/10/2021,77.82,Director of Portsmouth International Port
Other Supplies,Misc Speciality Retail,Amznmktplace Amazon.Co.Uk,Supplies and Services related expenditure,06/10/2021,5.32,Director of Adult Care
Other Supplies,Misc Speciality Retail,Amznbusiness,Supplies and Services related expenditure,06/10/2021,28.88,Director of Children's Services and Education
Transportation Conveyor,Local Commuter Transport,Www.Wightlink.Co.Uk,Supplies and Services related expenditure,06/10/2021,90.5,Director of Children's Services and Education
Other Supplies,Misc Gen Merchandise - Def,B&m Retail Ltd,Supplies and Services related expenditure,06/10/2021,16.87,Director of Children's Services and Education
Type of Retail Store,Grocery Stores/Supermarkets,Lidl Gb Portsmouth,Supplies and Services related expenditure,06/10/2021,48.66,Director of Children's Services and Education
Type of Retail Store,Grocery Stores/Supermarkets,Lidl Gb Portsmouth,Supplies and Services related expenditure,06/10/2021,3.46,Director of Children's Services and Education
Medical,Medical/Dental Labs,Matrix Diagnostics Limite,Supplies and Services related expenditure,06/10/2021,256.8,Director of Children's Services and Education
Type of Retail Store,Grocery Stores/Supermarkets,Sainsburys S/mkts,Supplies and Services related expenditure,06/10/2021,3.73,Director of Children's Services and Education
Government Service,Tax Payments,Dvla Vehicle Tax,Supplies and Services related expenditure,06/10/2021,231.25,Director of Regeneration
Type of Retail Store,Grocery Stores/Supermarkets,Tesco Stores 6002,Supplies and Services related expenditure,06/10/2021,19.2,"Director of Housing, Neighbourhood and Building Services"
Other Supplies,Misc Gen Merchandise - Def,B&m Retail Ltd,Supplies and Services related expenditure,06/10/2021,16.66,Director of Children's Services and Education
Other Supplies,Misc Gen Merchandise - Def,Sp * School Badges Uk,Supplies and Services related expenditure,06/10/2021,12.5,Director of Children's Services and Education
Business To Business Facility/,Industrial Supplies - Def,Arco Limited (Ahpp),Supplies and Services related expenditure,06/10/2021,10.44,"Director of Housing, Neighbourhood and Building Services"
Other Supplies,Discount Stores,Broadcut,Supplies and Services related expenditure,06/10/2021,-62.48,"Director of Culture, Leisure & Regulatory Services"
Business Services,Business Services - Default,Endrick Trading Ltd,Supplies and Services related expenditure,06/10/2021,95.97,"Director of Culture, Leisure & Regulatory Services"
Type of Retail Store,Grocery Stores/Supermarkets,Iceland,Supplies and Services related expenditure,06/10/2021,15.2,"Director of Housing, Neighbourhood and Building Services"
Business To Business Eqpt/Furn,Computer Software Stores,Sp * Upsu-Store,Supplies and Services related expenditure,06/10/2021,99,"Director of Housing, Neighbourhood and Building Services"
Facilities/Repair Supplies,Lumber/Build. Supply Stores,Jewson Ltd,Supplies and Services related expenditure,06/10/2021,21.9,"Director of Housing, Neighbourhood and Building Services"
Business To Business Facility/,Industrial Supplies - Def,Arco Limited (Sap),Supplies and Services related expenditure,06/10/2021,135.64,"Director of Housing, Neighbourhood and Building Services"
Automobile Rental,Automobile Rental Agency,Southern Motor Contrac,Transport related expenditure,06/10/2021,578.37,Director of Regeneration
Automobile Rental,Automobile Rental Agency,Southern Motor Contrac,Transport related expenditure,06/10/2021,8304.2,Director of Regeneration
Transportation Conveyor,Passenger Railways,Trainline.Com,Transport related expenditure,06/10/2021,11.59,Director of Regeneration
Transportation Conveyor,Passenger Railways,Thetrainline.Com,Transport related expenditure,06/10/2021,34.68,Director of Regeneration
Transportation Conveyor,Passenger Railways,Trainline.Com,Transport related expenditure,06/10/2021,57.82,Director of Regeneration
Transportation Conveyor,Passenger Railways,Thetrainline.Com,Transport related expenditure,06/10/2021,126.26,Director of Regeneration
Eating And Drinking Places,Fast Food Restaurants,Dominos Pizza,Supplies and Services related expenditure,06/10/2021,140,Director of Children's Services and Education
Business Services,Business Services - Default,Www.Eyfs.Info,Supplies and Services related expenditure,06/10/2021,178,Director of Children's Services and Education
Facilities Maintenance,Clean/Maint/Janitoral Serv,Cjs Portsmouth Limited,Premises related expenditure,06/10/2021,52.95,"Director of Housing, Neighbourhood and Building Services"
Facilities/Repair Supplies,Lawn/Garden Supply/Nursery,Carters Of Swanwic,Supplies and Services related expenditure,06/10/2021,238.9,"Director of Housing, Neighbourhood and Building Services"
Facilities/Repair Supplies,Home Supply Warehouse Stores,B & Q 1260,Supplies and Services related expenditure,06/10/2021,41.67,"Director of Housing, Neighbourhood and Building Services"
Facilities/Repair Supplies,Home Supply Warehouse Stores,B & Q 1260,Premises related expenditure,06/10/2021,129.76,Director of Children's Services and Education
Facilities/Repair Supplies,Lumber/Build. Supply Stores,Www.Dylangroup.Co.,Premises related expenditure,06/10/2021,882.4,"Director of Culture, Leisure & Regulatory Services"
Business Expenses/Services,Postage Stamps,Post Office Counter,Supplies and Services related expenditure,06/10/2021,2.69,Director of Children's Services and Education
Amusement/Entertainment,Member Clubs/Sport/Rec/Golf,Hollywood Bowl,Supplies and Services related expenditure,06/10/2021,48,Director of Children's Services and Education
Government Service,Govt Serv - Default,Dwp,Agency and Third Party Payments related expenditure,06/10/2021,160,Director of Children's Services and Education
Business To Business Facility/,Industrial Supplies - Def,Arco Limited (Sap),Supplies and Services related expenditure,06/10/2021,28.22,"Director of Housing, Neighbourhood and Building Services"
Transportation Conveyor,"Parking Lots, Meters, Garages",Apcoa Parking,Supplies and Services related expenditure,06/10/2021,30,Director of Children's Services and Education
Medical,Lab/Med/Hospital Equipment,Wightman & Parrish,Premises related expenditure,06/10/2021,103.9,"Director of Housing, Neighbourhood and Building Services"
Utility,Phone Serv/Equip Utility,Vodafone Ltd,Supplies and Services related expenditure,06/10/2021,133.46,Director of Children's Services and Education
Facilities/Repair Supplies,Home Supply Warehouse Stores,B & Q 1260,Supplies and Services related expenditure,06/10/2021,7.92,"Director of Housing, Neighbourhood and Building Services"
Government Service,Govt Serv - Default,Hampshire County Counc,Supplies and Services related expenditure,06/10/2021,23.68,Director of Children's Services and Education
Other Supplies,Misc Speciality Retail,Amznmktplace,Supplies and Services related expenditure,06/10/2021,9.16,Director of Adult Care
Other Supplies,Misc Speciality Retail,Amznmktplace,Supplies and Services related expenditure,06/10/2021,24.96,Director of Adult Care
Other Supplies,Misc Speciality Retail,Amznmktplace,Supplies and Services related expenditure,06/10/2021,4.16,"Director of Housing, Neighbourhood and Building Services"
Other Supplies,Misc Speciality Retail,Amznbusiness,Supplies and Services related expenditure,06/10/2021,12.49,"Director of Housing, Neighbourhood and Building Services"
Transportation Conveyor,Passenger Railways,Swrailway Tck Off,Transport related expenditure,06/10/2021,5.4,"Director of Housing, Neighbourhood and Building Services"
Eating And Drinking Places,Fast Food Restaurants,Starbucks,Agency and Third Party Payments related expenditure,06/10/2021,8.5,Director of Children's Services and Education
Eating And Drinking Places,Eating Places/Restaurants,Greggs,Supplies and Services related expenditure,06/10/2021,2.79,Director of Children's Services and Education
Eating And Drinking Places,Eating Places/Restaurants,Iz *yakinori Solihull Ltd,Supplies and Services related expenditure,06/10/2021,9.81,Director of Children's Services and Education
Government Service,Govt Serv - Default,Pcc Internet Payment,Supplies and Services related expenditure,06/10/2021,35,Director of Children's Services and Education
Facilities/Repair Supplies,Home Supply Warehouse Stores,B & Q 1260,Premises related expenditure,06/10/2021,237.6,Director of Adult Care
Other Supplies,Misc Speciality Retail,Amznmktplace,Supplies and Services related expenditure,06/10/2021,13.29,Director of Portsmouth International Port
Clothing Services,Mens/Womens Clothing Stores,Matalan,Supplies and Services related expenditure,06/10/2021,20.83,Director of Children's Services and Education
Clothing Services,Mens/Womens Clothing Stores,Matalan,Supplies and Services related expenditure,06/10/2021,0.2,Director of Children's Services and Education
Clothing Services,Mens/Womens Clothing Stores,Matalan,Supplies and Services related expenditure,06/10/2021,22.5,Director of Children's Services and Education
Facilities/Repair Supplies,Home Supply Warehouse Stores,B & Q 1260,Premises related expenditure,06/10/2021,21.67,"Director of Culture, Leisure & Regulatory Services"
Facilities/Repair Supplies,Hardware Stores,Home Bargains,Supplies and Services related expenditure,06/10/2021,1.07,Director of Children's Services and Education
Other Supplies,Misc Speciality Retail,Amznmktplace,Supplies and Services related expenditure,06/10/2021,12.74,Director of Adult Care
Other Supplies,Misc Speciality Retail,Amznmktplace,Supplies and Services related expenditure,06/10/2021,223.33,Director of Adult Care
Other Supplies,Misc Speciality Retail,Amznmktplace,Supplies and Services related expenditure,06/10/2021,335,Director of Adult Care
Type of Retail Store,Electronics Sales,Currys Online,Supplies and Services related expenditure,06/10/2021,215.83,Director of Children's Services and Education
Other Supplies,Discount Stores,Argos Ltd,Supplies and Services related expenditure,06/10/2021,274.99,Director of Children's Services and Education
Type of Retail Store,Electronics Sales,Currys Online,Supplies and Services related expenditure,06/10/2021,275,Director of Children's Services and Education
Equipment And Furniture,Furniture/Equip Stores,Www.Scs.Co.Uk,Supplies and Services related expenditure,06/10/2021,306.67,Director of Children's Services and Education
Type of Retail Store,Electronics Sales,Currys Online,Supplies and Services related expenditure,06/10/2021,383.32,Director of Children's Services and Education
Facilities/Repair Supplies,Wrecking Salvage Yards,Send And Destroy,Premises related expenditure,06/10/2021,195,Director of Children's Services and Education
Business To Business Facility/,Industrial Supplies - Def,Arco Limited (Sap),Supplies and Services related expenditure,06/10/2021,40.56,"Director of Housing, Neighbourhood and Building Services"
Auto/Vehicle Expenses,Auto Service Shops/Non Dealer,Solent Motor Services,Transport related expenditure,06/10/2021,1466.27,"Director of Housing, Neighbourhood and Building Services"
Other Supplies,Misc Speciality Retail,Amznmktplace,Supplies and Services related expenditure,06/10/2021,25.82,Director of Regeneration
Other Supplies,Misc Speciality Retail,Amznmktplace,Supplies and Services related expenditure,06/10/2021,27.4,Director of Regeneration
Business Expenses/Services,Postage Stamps,Post Office Counter,Supplies and Services related expenditure,06/10/2021,2.25,Director of Children's Services and Education
Business Expenses/Services,Postage Stamps,Post Office Counter,Supplies and Services related expenditure,06/10/2021,2.69,Director of Children's Services and Education
Government Service,Govt Serv - Default,Disclosure & Barring,Supplies and Services related expenditure,06/10/2021,13,Director of Children's Services and Education
Equipment And Furniture,Furniture/Equip Stores,Www.Therange.Co.Uk,Supplies and Services related expenditure,06/10/2021,12.46,Director of Children's Services and Education
Other Supplies,Catalog Merchant,Www.Nisbets.Com,Premises related expenditure,06/10/2021,41.93,Director of Children's Services and Education
Facilities/Repair Supplies,Lumber/Build. Supply Stores,B And Q,Premises related expenditure,06/10/2021,74.17,Director of Children's Services and Education
Miscellaneous,Charitable/Soc Service Orgs,Paypal,Supplies and Services related expenditure,06/10/2021,130,"Director of Housing, Neighbourhood and Building Services"
Other Supplies,Misc Speciality Retail,Amznmktplace Amazon.Co.Uk,Supplies and Services related expenditure,06/10/2021,29.16,Director of Adult Care
Automobile Services & Supplies,Service Stations,Bp Towcester Motoring Nth,Transport related expenditure,06/10/2021,3.81,Director of Children's Services and Education
Facilities/Repair Supplies,Hardware Stores,Toolstation Uk,Premises related expenditure,07/10/2021,12.75,"Director of Housing, Neighbourhood and Building Services"
Facilities/Repair Supplies,Lumber/Build. Supply Stores,Screwfix Direct,Premises related expenditure,07/10/2021,41.66,"Director of Housing, Neighbourhood and Building Services"
Utility,Phone Serv/Equip Utility,Www.Broadbandbuyer.Co.Uk,Supplies and Services related expenditure,07/10/2021,-173.89,"Director of Housing, Neighbourhood and Building Services"
Utility,Phone Serv/Equip Utility,Www.Broadbandbuyer.Co.Uk,Supplies and Services related expenditure,07/10/2021,353.78,"Director of Housing, Neighbourhood and Building Services"
Utility,Utilities/Elec/Gas/H2O/Sani,Smart Top Up,Premises related expenditure,07/10/2021,30,"Director of Housing, Neighbourhood and Building Services"
Utility,Utilities/Elec/Gas/H2O/Sani,Smart Top Up,Premises related expenditure,07/10/2021,30,"Director of Housing, Neighbourhood and Building Services"
Business To Business Facility/,Industrial Supplies - Def,Arco Limited (Ahpp),Supplies and Services related expenditure,07/10/2021,44.08,"Director of Housing, Neighbourhood and Building Services"
Facilities/Repair Supplies,Bicycle Shops/Sales/Service,Halfords On Line,Supplies and Services related expenditure,07/10/2021,49.17,Director of Regeneration
Facilities/Repair Supplies,Bicycle Shops/Sales/Service,Halfords On Line,Supplies and Services related expenditure,07/10/2021,37.5,Director of Regeneration
Facilities/Repair Supplies,Bicycle Shops/Sales/Service,Halfords On Line,Supplies and Services related expenditure,07/10/2021,25,Director of Regeneration
Other Supplies,Misc Speciality Retail,Timpson Ltd,Supplies and Services related expenditure,07/10/2021,20.42,"Director of Housing, Neighbourhood and Building Services"
Facilities/Repair Supplies,Lumber/Build. Supply Stores,Screwfix Dir Ltd,Premises related expenditure,07/10/2021,19.97,Director of Children's Services and Education
Business To Business Eqpt/Furn,Computer Software Stores,Victory Trophies,Supplies and Services related expenditure,07/10/2021,12.5,"Director of Culture, Leisure & Regulatory Services"
Utility,Cable/Pay Tv Services,Netflix.Com,Supplies and Services related expenditure,07/10/2021,13.99,Director of Children's Services and Education
Transportation Conveyor,Passenger Railways,Swrailwayselfserve,Transport related expenditure,07/10/2021,31.8,Director of Children's Services and Education
Transportation Conveyor,Passenger Railways,Swrailwayselfserve,Transport related expenditure,07/10/2021,31.8,Director of Children's Services and Education
Business To Business Eqpt/Furn,Stationery/Office Supplies,Www.Banneruk.Com,Supplies and Services related expenditure,07/10/2021,21.98,"Director of Housing, Neighbourhood and Building Services"
Business To Business Eqpt/Furn,Stationery/Office Supplies,Www.Banneruk.Com,Supplies and Services related expenditure,07/10/2021,52.39,"Director of Housing, Neighbourhood and Building Services"
Other Supplies,Misc Speciality Retail,Amznmktplace,Supplies and Services related expenditure,07/10/2021,2.91,Director of Children's Services and Education
Other Supplies,Misc Speciality Retail,Amznmktplace,Supplies and Services related expenditure,07/10/2021,6.24,Director of Children's Services and Education
Facilities/Repair Supplies,Lawn/Garden Supply/Nursery,Carters Of Swanwic,Supplies and Services related expenditure,07/10/2021,159.49,"Director of Housing, Neighbourhood and Building Services"
Medical,Lab/Med/Hospital Equipment,Wightman & Parrish,Premises related expenditure,07/10/2021,214.26,"Director of Housing, Neighbourhood and Building Services"
Type of Retail Store,Grocery Stores/Supermarkets,Asda Groceries Online,Supplies and Services related expenditure,07/10/2021,-3.3,Director of Adult Care
Type of Retail Store,Grocery Stores/Supermarkets,Asda Groceries Online,Supplies and Services related expenditure,07/10/2021,179.09,Director of Adult Care
Business To Business Eqpt/Furn,Computer Software Stores,R H Environmental Ltd,Supplies and Services related expenditure,07/10/2021,290,"Director of Housing, Neighbourhood and Building Services"
Government Service,Schools - Default,M L (UK) Limited,Premises related expenditure,07/10/2021,55,Director of Portsmouth International Port
Government Service,Schools - Default,M L (UK) Limited,Premises related expenditure,07/10/2021,485,Director of Portsmouth International Port
Personal Service Provider,Commercial Photo/Art/Graph,Iz *clay Lane Stud,Premises related expenditure,07/10/2021,150,"Director of Culture, Leisure & Regulatory Services"
Business Services,Advertising Services,Linkedin Ireland,Supplies and Services related expenditure,07/10/2021,86.62,Director of Corporate Services
Automobile Services & Supplies,Service Stations,Applegreen Kennington,Supplies and Services related expenditure,07/10/2021,5.95,Director of Children's Services and Education
Transportation Conveyor,Passenger Railways,New Southern Railw,Supplies and Services related expenditure,07/10/2021,36.3,Director of Children's Services and Education
Other Supplies,Misc Speciality Retail,Amznmktplace,Supplies and Services related expenditure,07/10/2021,24.12,Director of Children's Services and Education
Miscellaneous,Elementary/Secondary School,Historicala,Supplies and Services related expenditure,07/10/2021,15,Director of Children's Services and Education
Miscellaneous,Elementary/Secondary School,Historicala,Supplies and Services related expenditure,07/10/2021,56,Director of Children's Services and Education
Business Expenses/Services,Stationery Stores,Www.Tts-Groups.Co.Uk,Supplies and Services related expenditure,07/10/2021,86.8,Director of Children's Services and Education
Facilities/Repair Supplies,Lumber/Build. Supply Stores,Trade Uk,Premises related expenditure,07/10/2021,113.83,Director of Children's Services and Education
Type of Retail Store,Music Stores/Pianos,Gear4music,Supplies and Services related expenditure,07/10/2021,375,Director of Children's Services and Education
Equipment And Furniture,Household Appliance Stores,Machine Mart Ltd,Supplies and Services related expenditure,07/10/2021,71.97,"Director of Housing, Neighbourhood and Building Services"
Transportation Conveyor,Passenger Railways,Southern Railway Web,Supplies and Services related expenditure,07/10/2021,87.2,Director of Children's Services and Education
Government Service,Govt Serv - Default,Hm Passport Office,Supplies and Services related expenditure,07/10/2021,122,Director of Children's Services and Education
Other Supplies,Misc Speciality Retail,Amznmktplace,Supplies and Services related expenditure,07/10/2021,6.47,"Director of Culture, Leisure & Regulatory Services"
Other Supplies,Misc Speciality Retail,Amznmktplace,Supplies and Services related expenditure,07/10/2021,8.25,"Director of Culture, Leisure & Regulatory Services"
Transportation Conveyor,Passenger Railways,Thetrainline.Com,Supplies and Services related expenditure,07/10/2021,84.21,Director of Portsmouth International Port
Type of Retail Store,Grocery Stores/Supermarkets,Co-Op Group 310643,Supplies and Services related expenditure,07/10/2021,40,Director of Children's Services and Education
Other Supplies,Catalog Merchant,Www.Nisbets.Com,Supplies and Services related expenditure,07/10/2021,-28.77,Director of Adult Care
Business To Business Services,Misc Publishing & Printing,Www.Labelsandtags.Co.U,Premises related expenditure,07/10/2021,12,Director of Portsmouth International Port
Government Service,Schools - Default,M L (UK) Limited,Premises related expenditure,07/10/2021,386.48,Director of Portsmouth International Port
Other Supplies,Misc Gen Merchandise - Def,B&m 566 - Farlington,Supplies and Services related expenditure,07/10/2021,4.16,Director of Children's Services and Education
Business To Business Eqpt/Furn,Stationery/Office Supplies,Www.Banneruk.Com,Supplies and Services related expenditure,07/10/2021,9.51,Director of Adult Care
Business To Business Eqpt/Furn,Stationery/Office Supplies,Www.Banneruk.Com,Supplies and Services related expenditure,07/10/2021,18.81,Director of Adult Care
Type of Retail Store,Grocery Stores/Supermarkets,Tesco Stores 4579,Supplies and Services related expenditure,07/10/2021,35.58,Director of Adult Care
Type of Retail Store,Grocery Stores/Supermarkets,Tesco Stores 6002,Supplies and Services related expenditure,07/10/2021,6.95,Director of Children's Services and Education
Type of Retail Store,Grocery Stores/Supermarkets,Tesco Stores 6002,Supplies and Services related expenditure,07/10/2021,132.58,Director of Children's Services and Education
Transportation Conveyor,Passenger Railways,Thetrainline.Com,Supplies and Services related expenditure,07/10/2021,25.43,Director of Children's Services and Education
Government Service,Govt Serv - Default,Www.Portsmouthcc.Gov.U,Transport related expenditure,07/10/2021,1.6,Director of Children's Services and Education
Government Service,Govt Serv - Default,Www.Portsmouthcc.Gov.U,Transport related expenditure,07/10/2021,0.33,Director of Children's Services and Education
Other Supplies,Misc Gen Merchandise - Def,Wilko Retail Limited,Premises related expenditure,07/10/2021,44,Director of Children's Services and Education
Other Supplies,Misc Speciality Retail,Amznmktplace,Supplies and Services related expenditure,07/10/2021,24.37,Director of Adult Care
Other Supplies,Misc Speciality Retail,Amznmktplace,Supplies and Services related expenditure,07/10/2021,34.02,Director of Adult Care
Government Service,Govt Serv - Default,Mmo,Capital related expenditure,07/10/2021,945.5,Capital - Leader - Port
Transportation Conveyor,Taxicabs/Limousines,Aqua Cars,Supplies and Services related expenditure,07/10/2021,19.5,Director of Adult Care
Utility,Phone Serv/Equip Utility,Blizzard Telecom Limit,Supplies and Services related expenditure,07/10/2021,54,Director of Adult Care
Business To Business Eqpt/Furn,Stationery/Office Supplies,Www.Banneruk.Com,Supplies and Services related expenditure,07/10/2021,198.95,Director of Adult Care
Type of Retail Store,Grocery Stores/Supermarkets,Asda Stores,Supplies and Services related expenditure,07/10/2021,17.81,Director of Children's Services and Education
Type of Retail Store,Grocery Stores/Supermarkets,Farmfoods 750,Supplies and Services related expenditure,07/10/2021,24.83,Director of Children's Services and Education
Business To Business Eqpt/Furn,Stationery/Office Supplies,Www.Banneruk.Com,Supplies and Services related expenditure,07/10/2021,1.44,"Director of Culture, Leisure & Regulatory Services"
Government Service,Govt Serv - Default,Www.Moneyclaim.Gov,Supplies and Services related expenditure,07/10/2021,558.96,Director of Finance & Resources
Government Service,Govt Serv - Default,Gen Register Office,Supplies and Services related expenditure,07/10/2021,11,Director of Children's Services and Education
Government Service,Govt Serv - Default,Westminster City Counc,Supplies and Services related expenditure,07/10/2021,-16,Director of Children's Services and Education
Government Service,Govt Serv - Default,Pcc Internet Payment,Supplies and Services related expenditure,07/10/2021,44,Director of Children's Services and Education
Type of Retail Store,Grocery Stores/Supermarkets,Tesco Gift Card,Supplies and Services related expenditure,07/10/2021,50,Director of Children's Services and Education
Type of Retail Store,Grocery Stores/Supermarkets,Asda Stores Ltd,Supplies and Services related expenditure,07/10/2021,50,Director of Children's Services and Education
Business Services,Business Services - Default,Fast Key Services Limi,Agency and Third Party Payments related expenditure,07/10/2021,34,Director of Children's Services and Education
Other Supplies,Misc Gen Merchandise - Def,Sp * School Badges Uk,Supplies and Services related expenditure,07/10/2021,27.5,Director of Children's Services and Education
Eating And Drinking Places,Fast Food Restaurants,Just Eat,Agency and Third Party Payments related expenditure,07/10/2021,10.52,Director of Children's Services and Education
Business To Business Facility/,Industrial Supplies - Def,Lawtons Limited,Supplies and Services related expenditure,07/10/2021,12.18,Director of Children's Services and Education
Facilities/Repair Supplies,Lumber/Build. Supply Stores,Screwfix Direct,Premises related expenditure,07/10/2021,37.48,Director of Children's Services and Education
Medical,Med/Health Services - Def,Mangar International L,Supplies and Services related expenditure,07/10/2021,247.61,Director of Adult Care
Clothing Services,Mens/Womens Clothing Stores,H & M,Supplies and Services related expenditure,07/10/2021,10.82,Director of Children's Services and Education
Freight/Courier/Warehouse Svcs,Motor Freight Carriers,Www Anyvan Com,Transport related expenditure,07/10/2021,103.33,Director of Children's Services and Education
Business To Business Eqpt/Furn,Stationery/Office Supplies,Www.Banneruk.Com,Supplies and Services related expenditure,07/10/2021,2.23,"Director of Culture, Leisure & Regulatory Services"
Business To Business Eqpt/Furn,Stationery/Office Supplies,Www.Banneruk.Com,Supplies and Services related expenditure,07/10/2021,22.58,"Director of Culture, Leisure & Regulatory Services"
Business To Business Eqpt/Furn,Stationery/Office Supplies,Www.Banneruk.Com,Supplies and Services related expenditure,07/10/2021,48.29,"Director of Culture, Leisure & Regulatory Services"
Transportation Conveyor,Passenger Railways,Trainline.Com,Supplies and Services related expenditure,07/10/2021,36.44,Director of Children's Services and Education
Type of Retail Store,Grocery Stores/Supermarkets,Iceland,Supplies and Services related expenditure,07/10/2021,3.77,"Director of Housing, Neighbourhood and Building Services"
Other Supplies,Misc Gen Merchandise - Def,Wilko Retail Limited,Supplies and Services related expenditure,07/10/2021,14.46,"Director of Housing, Neighbourhood and Building Services"
Type of Retail Store,Grocery Stores/Supermarkets,Sainsburys S/mkts,Supplies and Services related expenditure,07/10/2021,7.1,"Director of Culture, Leisure & Regulatory Services"
Business To Business Eqpt/Furn,Computer Software Stores,Currys Business,Supplies and Services related expenditure,07/10/2021,83.32,Director of Regeneration
Caterers Food,Caterers,Booker Limited Portsmouth,Supplies and Services related expenditure,07/10/2021,17.97,Director of Children's Services and Education
Caterers Food,Caterers,Booker Limited Portsmouth,Supplies and Services related expenditure,07/10/2021,21.22,Director of Children's Services and Education
Government Service,Govt Serv - Default,Www.Ico.Org.Uk,Supplies and Services related expenditure,07/10/2021,40,Director of Children's Services and Education
Type of Retail Store,Grocery Stores/Supermarkets,Sainsburys.Co.Uk,Supplies and Services related expenditure,07/10/2021,79.3,Director of Children's Services and Education
Freight/Courier/Warehouse Svcs,Public Warehousing,Www.Safestore.Co.Uk,Premises related expenditure,07/10/2021,1505.72,Director of Children's Services and Education
Type of Retail Store,Grocery Stores/Supermarkets,Asda Superstore,Supplies and Services related expenditure,07/10/2021,3.85,Director of Adult Care
Facilities/Repair Supplies,Hardware Stores,Toolstation Uk,Supplies and Services related expenditure,07/10/2021,18.55,"Director of Housing, Neighbourhood and Building Services"
Type of Retail Store,Drug Stores & Pharmacies,Bobat Pharmacy,Supplies and Services related expenditure,07/10/2021,8.77,Director of Adult Care
Business To Business Eqpt/Furn,Stationery/Office Supplies,Www.Banneruk.Com,Premises related expenditure,07/10/2021,9.6,"Director of Culture, Leisure & Regulatory Services"
Type of Retail Store,Grocery Stores/Supermarkets,One Stop 1339,Supplies and Services related expenditure,07/10/2021,8.75,Director of Children's Services and Education
Medical,Lab/Med/Hospital Equipment,Scientificlabs.Co.,Supplies and Services related expenditure,07/10/2021,71.67,Director of Children's Services and Education
Facilities/Repair Supplies,Home Supply Warehouse Stores,B & Q 1260,Supplies and Services related expenditure,07/10/2021,33.33,"Director of Housing, Neighbourhood and Building Services"
Facilities/Repair Supplies,Lawn/Garden Supply/Nursery,Carters Of Swanwic,Supplies and Services related expenditure,07/10/2021,37.02,"Director of Housing, Neighbourhood and Building Services"
Transportation Conveyor,Passenger Railways,Lul Ticket Machine,Transport related expenditure,07/10/2021,5.5,Director of Regeneration
Transportation Conveyor,Taxicabs/Limousines,Sq *ryde Taxis Iow Limite,Transport related expenditure,07/10/2021,20.41,Solent LEP
Business To Business Services,Information Retrieval Services,Www.Restore.Co.Uk,Supplies and Services related expenditure,07/10/2021,21.84,Solent LEP
Business To Business Eqpt/Furn,Stationery/Office Supplies,Www.Banneruk.Com,Supplies and Services related expenditure,07/10/2021,1.82,Director of Finance & Resources
Business To Business Eqpt/Furn,Stationery/Office Supplies,Www.Banneruk.Com,Supplies and Services related expenditure,07/10/2021,14.8,Chief Exec
Business To Business Eqpt/Furn,Stationery/Office Supplies,Www.Banneruk.Com,Supplies and Services related expenditure,07/10/2021,27.36,Chief Exec
Utility,Phone Serv/Equip Utility,Zoom.Us 888-799-9666,Supplies and Services related expenditure,07/10/2021,11.99,Director of Corporate Services
Utility,Phone Serv/Equip Utility,Zoom.Us 888-799-9666,Supplies and Services related expenditure,07/10/2021,11.99,Chief Exec
Transportation Conveyor,Taxicabs/Limousines,Aqua Cars,Transport related expenditure,07/10/2021,42.8,"Director of Housing, Neighbourhood and Building Services"
Eating And Drinking Places,Eating Places/Restaurants,McDonalds,Supplies and Services related expenditure,07/10/2021,3.99,Director of Children's Services and Education
Eating And Drinking Places,Fast Food Restaurants,McDonalds,Supplies and Services related expenditure,07/10/2021,4.59,Director of Children's Services and Education
Other Supplies,Department Stores,Www.Johnlewis.Com,Supplies and Services related expenditure,07/10/2021,15.42,Director of Children's Services and Education
Personal Service Provider,Computer Program/Sys Design,Connectix Ltd,Supplies and Services related expenditure,07/10/2021,56.38,Director of Children's Services and Education
Facilities/Repair Supplies,Home Supply Warehouse Stores,B & Q 1260,Premises related expenditure,07/10/2021,110.09,Director of Adult Care
Business To Business Facility/,Hardware Equipment/Supplies,Wwtoptoolsdirect.Com,Premises related expenditure,07/10/2021,14.92,Director of Children's Services and Education
Other Supplies,Misc Speciality Retail,Amznmktplace,Supplies and Services related expenditure,07/10/2021,53.36,Director of Portsmouth International Port
Other Supplies,Misc Speciality Retail,Amznbusiness,Supplies and Services related expenditure,07/10/2021,20.48,Director of Adult Care
Business To Business Eqpt/Furn,Stationery/Office Supplies,Www.Banneruk.Com,Supplies and Services related expenditure,07/10/2021,64.68,Director of Adult Care
Other Supplies,Discount Stores,Www.Theworks.Co.Uk,Supplies and Services related expenditure,07/10/2021,39.58,"Director of Culture, Leisure & Regulatory Services"
Business To Business Eqpt/Furn,Stationery/Office Supplies,Www.Banneruk.Com,Supplies and Services related expenditure,07/10/2021,34.4,Director of Corporate Services
Business To Business Eqpt/Furn,Stationery/Office Supplies,Www.Banneruk.Com,Supplies and Services related expenditure,07/10/2021,21.71,Director of Children's Services and Education
Government Service,Tax Payments,Dvla Vehicle Tax,Transport related expenditure,07/10/2021,277.5,Director of Corporate Services
Type of Retail Store,Drug Stores & Pharmacies,Meralis Chemist,Supplies and Services related expenditure,07/10/2021,6,Director of Children's Services and Education
Government Service,Tax Payments,Dvla Vehicle Tax,Transport related expenditure,07/10/2021,167.5,Director of Children's Services and Education
Business To Business Eqpt/Furn,Stationery/Office Supplies,Www.Banneruk.Com,Supplies and Services related expenditure,07/10/2021,23.4,Director of Corporate Services
Other Supplies,Misc Speciality Retail,Iz *goodwins Photo & Fram,Transport related expenditure,07/10/2021,8.33,Director of Children's Services and Education
Business To Business Eqpt/Furn,Stationery/Office Supplies,Www.Banneruk.Com,Supplies and Services related expenditure,07/10/2021,0.91,Director of Adult Care
Utility,Phone Serv/Equip Utility,Zoom.Us 888-799-9666,Supplies and Services related expenditure,08/10/2021,11.99,Director of Corporate Services
Medical,Lab/Med/Hospital Equipment,Wightman & Parrish,Supplies and Services related expenditure,01/10/2021,-103.9,"Director of Housing, Neighbourhood and Building Services"
Business To Business Facility/,Industrial Supplies - Def,Arco Limited (Ahpp),Supplies and Services related expenditure,04/10/2021,7.01,Director of Portsmouth International Port
Business To Business Facility/,Industrial Supplies - Def,Arco Limited (Ahpp),Supplies and Services related expenditure,04/10/2021,19.8,Director of Portsmouth International Port
Business To Business Facility/,Industrial Supplies - Def,Arco Limited (Ahpp),Supplies and Services related expenditure,04/10/2021,39.03,Director of Portsmouth International Port
Business To Business Facility/,Electrical Parts/Equipment,Rs Components,Supplies and Services related expenditure,06/10/2021,16.1,"Director of Housing, Neighbourhood and Building Services"
Business To Business Facility/,Electrical Parts/Equipment,Rs Components,Supplies and Services related expenditure,06/10/2021,16.1,"Director of Housing, Neighbourhood and Building Services"
Business To Business Facility/,Industrial Supplies - Def,Arco Limited (Ahpp),Supplies and Services related expenditure,06/10/2021,94.06,"Director of Housing, Neighbourhood and Building Services"
Business To Business Facility/,Industrial Supplies - Def,Arco Limited (Ahpp),Supplies and Services related expenditure,06/10/2021,8.44,"Director of Housing, Neighbourhood and Building Services"
Business To Business Facility/,Industrial Supplies - Def,Arco Limited (Ahpp),Supplies and Services related expenditure,06/10/2021,17.22,Director of Portsmouth International Port
Business To Business Facility/,Industrial Supplies - Def,Arco Limited (Ahpp),Supplies and Services related expenditure,06/10/2021,17.22,Director of Portsmouth International Port
Business To Business Facility/,Industrial Supplies - Def,Arco Limited (Ahpp),Supplies and Services related expenditure,06/10/2021,17.22,Director of Portsmouth International Port
Personal Service Provider,Mgmt/Consult/Public Rel Ser,Tvlicensing.Co.Uk,Supplies and Services related expenditure,07/10/2021,159,"Director of Housing, Neighbourhood and Building Services"
Personal Service Provider,Mgmt/Consult/Public Rel Ser,Tvlicensing.Co.Uk,Supplies and Services related expenditure,07/10/2021,159,"Director of Housing, Neighbourhood and Building Services"
Personal Service Provider,Mgmt/Consult/Public Rel Ser,Tvlicensing.Co.Uk,Supplies and Services related expenditure,07/10/2021,159,"Director of Housing, Neighbourhood and Building Services"
Other Supplies,Misc Speciality Retail,Amznmktplace Amazon.Co.Uk,Supplies and Services related expenditure,07/10/2021,66.62,"Director of Housing, Neighbourhood and Building Services"
Business To Business Facility/,Industrial Supplies - Def,Arco Limited (Ahpp),Supplies and Services related expenditure,07/10/2021,61.91,"Director of Housing, Neighbourhood and Building Services"
Business To Business Facility/,Industrial Supplies - Def,Arco Limited (Ahpp),Supplies and Services related expenditure,07/10/2021,5.04,"Director of Culture, Leisure & Regulatory Services"
Clothing Services,Family Clothing Stores,Primark,Supplies and Services related expenditure,07/10/2021,5.83,Director of Children's Services and Education
Transportation Conveyor,Taxicabs/Limousines,Andicars,Transport related expenditure,07/10/2021,89.5,"Director of Housing, Neighbourhood and Building Services"
Miscellaneous,Fines,Combined Court Cen,Supplies and Services related expenditure,08/10/2021,355,"Director of Housing, Neighbourhood and Building Services"
Freight/Courier/Warehouse Svcs,Public Warehousing,Lok N Store,Premises related expenditure,08/10/2021,115,"Director of Housing, Neighbourhood and Building Services"
Hotels And Motels,Lodging/Hotels/Motels/Resorts,Holiday Inn,Supplies and Services related expenditure,08/10/2021,393.89,Director of Children's Services and Education
Other Supplies,Discount Stores,Argos Ltd,Supplies and Services related expenditure,08/10/2021,14.99,Director of Children's Services and Education
Clothing Services,Family Clothing Stores,Primark,Supplies and Services related expenditure,08/10/2021,41,Director of Children's Services and Education
Eating And Drinking Places,Fast Food Restaurants,Kfc Portsmouth,Supplies and Services related expenditure,08/10/2021,5.41,Director of Children's Services and Education
Other Supplies,Misc Gen Merchandise - Def,B&m Retail Ltd,Supplies and Services related expenditure,08/10/2021,25,Director of Children's Services and Education
Business To Business Eqpt/Furn,Stationery/Office Supplies,Www.Banneruk.Com,Supplies and Services related expenditure,08/10/2021,73.39,Director of Children's Services and Education
Business To Business Eqpt/Furn,Stationery/Office Supplies,Www.Banneruk.Com,Supplies and Services related expenditure,08/10/2021,73.8,Director of Children's Services and Education
Utility,Computer Network/Info Svcs,Siteground Hosting,Supplies and Services related expenditure,08/10/2021,14.99,Director of Children's Services and Education
Utility,Computer Network/Info Svcs,Siteground Hosting,Supplies and Services related expenditure,08/10/2021,14.99,Solent LEP
Automobile Services & Supplies,Service Stations,Tesco Pfs 4274,Transport related expenditure,08/10/2021,9.17,Director of Children's Services and Education
Facilities/Repair Supplies,Home Supply Warehouse Stores,B & Q 1260,Supplies and Services related expenditure,08/10/2021,12.67,Director of Children's Services and Education
Type of Retail Store,Grocery Stores/Supermarkets,Tesco Stores 4579,Supplies and Services related expenditure,08/10/2021,9.17,Director of Children's Services and Education
Type of Retail Store,Grocery Stores/Supermarkets,Tesco Stores 4579,Premises related expenditure,08/10/2021,13.83,Director of Children's Services and Education
Type of Retail Store,Grocery Stores/Supermarkets,Tesco Stores 4579,Supplies and Services related expenditure,08/10/2021,5.83,Director of Children's Services and Education
Type of Retail Store,Grocery Stores/Supermarkets,Tesco Stores 4579,Supplies and Services related expenditure,08/10/2021,109.48,Director of Children's Services and Education
Business To Business Eqpt/Furn,Stationery/Office Supplies,Www.Banneruk.Com,Supplies and Services related expenditure,08/10/2021,4.93,"Director of Culture, Leisure & Regulatory Services"
Business To Business Eqpt/Furn,Stationery/Office Supplies,Www.Banneruk.Com,Supplies and Services related expenditure,08/10/2021,9.72,"Director of Culture, Leisure & Regulatory Services"
Business To Business Eqpt/Furn,Stationery/Office Supplies,Www.Banneruk.Com,Supplies and Services related expenditure,08/10/2021,12.96,"Director of Culture, Leisure & Regulatory Services"
Business To Business Eqpt/Furn,Stationery/Office Supplies,Www.Banneruk.Com,Supplies and Services related expenditure,08/10/2021,17.75,"Director of Culture, Leisure & Regulatory Services"
Business Services,Advertising Services,Facebk 9n82j778z2,Supplies and Services related expenditure,08/10/2021,700,Director of Corporate Services
Type of Retail Store,Grocery Stores/Supermarkets,Tesco Stores 4611,Supplies and Services related expenditure,08/10/2021,25,Director of Children's Services and Education
Type of Retail Store,Grocery Stores/Supermarkets,Tesco Stores 4611,Supplies and Services related expenditure,08/10/2021,25,Director of Children's Services and Education
Type of Retail Store,Grocery Stores/Supermarkets,Tesco Store 3048,Supplies and Services related expenditure,08/10/2021,25,Director of Children's Services and Education
Type of Retail Store,Grocery Stores/Supermarkets,Tesco Store 3048,Supplies and Services related expenditure,08/10/2021,50,Director of Children's Services and Education
Government Service,Govt Serv - Default,Hampshire County Counc,Supplies and Services related expenditure,08/10/2021,24.57,Director of Children's Services and Education
Business To Business Facility/,Industrial Supplies - Def,Rus,Supplies and Services related expenditure,08/10/2021,26.63,Director of Children's Services and Education
Business To Business Eqpt/Furn,Computer Software Stores,Gdpr In Schools Ltd,Employees related expenditure,08/10/2021,58,Director of Children's Services and Education
Government Service,Schools - Default,Starbeck Educational Reso,Supplies and Services related expenditure,08/10/2021,134,Director of Children's Services and Education
Type of Retail Store,Drug Stores & Pharmacies,Boots 1445,Supplies and Services related expenditure,08/10/2021,10,Director of Children's Services and Education
Type of Retail Store,Record Shops,Presto Music,Supplies and Services related expenditure,08/10/2021,21.94,Director of Children's Services and Education
Personal Service Provider,Accountants/Auditors/Bookpr,Plasticboxc,Supplies and Services related expenditure,08/10/2021,108,Director of Children's Services and Education
Type of Retail Store,Grocery Stores/Supermarkets,Asda Groceries Online,Supplies and Services related expenditure,08/10/2021,16.33,Director of Children's Services and Education
Type of Retail Store,Grocery Stores/Supermarkets,Asda Groceries Online,Supplies and Services related expenditure,08/10/2021,51.71,Director of Children's Services and Education
Business To Business Eqpt/Furn,Stationery/Office Supplies,Www.Banneruk.Com,Supplies and Services related expenditure,08/10/2021,44.66,"Director of Housing, Neighbourhood and Building Services"
Type of Retail Store,Grocery Stores/Supermarkets,Tesco Stores 4611,Supplies and Services related expenditure,08/10/2021,20.83,Director of Children's Services and Education
Type of Retail Store,Drug Stores & Pharmacies,Boots 1524,Supplies and Services related expenditure,08/10/2021,3.65,"Director of Housing, Neighbourhood and Building Services"
Type of Retail Store,Grocery Stores/Supermarkets,Iceland Foods,Supplies and Services related expenditure,08/10/2021,102.2,Director of Adult Care
Business To Business Facility/,Electrical Parts/Equipment,Rs Components,Premises related expenditure,08/10/2021,16.41,Director of Portsmouth International Port
Business Services,Business Services - Default,Ak Muller (UK) Ltd,Premises related expenditure,08/10/2021,158.1,Director of Portsmouth International Port
Business To Business Facility/,Motor Vehicle Supply/New Parts,Tadano Demag UK Limited,Premises related expenditure,08/10/2021,450,Director of Portsmouth International Port
Other Supplies,Misc Speciality Retail,Amznmktplace,Supplies and Services related expenditure,08/10/2021,14.16,Director of Portsmouth International Port
Type of Retail Store,Grocery Stores/Supermarkets,Lidl Gb Portsmouth,Supplies and Services related expenditure,08/10/2021,5.31,Director of Adult Care
Government Service,Govt Serv - Default,Pcc Internet Payment,Agency and Third Party Payments related expenditure,08/10/2021,11,"Director of Culture, Leisure & Regulatory Services"
Business To Business Facility/,Industrial Supplies - Def,Arco Limited (Ahpp),Supplies and Services related expenditure,08/10/2021,17.28,Director of Portsmouth International Port
Business To Business Facility/,Industrial Supplies - Def,Arco Limited (Ahpp),Supplies and Services related expenditure,08/10/2021,17.28,Director of Portsmouth International Port
Transportation Conveyor,Passenger Railways,Thetrainline.Com,Supplies and Services related expenditure,08/10/2021,35.8,Director of Children's Services and Education
Equipment And Furniture,Furniture/Equip Stores,Paypal,Supplies and Services related expenditure,08/10/2021,151.99,Director of Children's Services and Education
Business Services,Business Services - Default,Vivid Housing Ltd,Supplies and Services related expenditure,08/10/2021,195.26,Director of Children's Services and Education
Airlines,Easy Jet Air,Easyjet,Supplies and Services related expenditure,08/10/2021,324.31,Director of Children's Services and Education
Personal Service Provider,Professional Services - Def,Www.Serco.Com,Transport related expenditure,08/10/2021,948.16,Director of Portsmouth International Port
Type of Retail Store,Grocery Stores/Supermarkets,Tesco Stores 6002,Supplies and Services related expenditure,08/10/2021,9,Director of Children's Services and Education
Equipment And Furniture,Furniture/Equip Stores,Www.Therange.Co.Uk,Supplies and Services related expenditure,08/10/2021,-8.94,Director of Children's Services and Education
Equipment And Furniture,Furniture/Equip Stores,Www.Therange.Co.Uk,Supplies and Services related expenditure,08/10/2021,-34.93,Director of Children's Services and Education
Business To Business Eqpt/Furn,Stationery/Office Supplies,Www.Banneruk.Com,Supplies and Services related expenditure,08/10/2021,2.11,"Director of Culture, Leisure & Regulatory Services"
Facilities/Repair Supplies,Lawn/Garden Supply/Nursery,Www.Tudorenvironmental,Supplies and Services related expenditure,08/10/2021,55.77,"Director of Culture, Leisure & Regulatory Services"
Facilities/Repair Supplies,Lawn/Garden Supply/Nursery,Www.Tudorenvironmental,Supplies and Services related expenditure,08/10/2021,375.5,"Director of Culture, Leisure & Regulatory Services"
Business To Business Eqpt/Furn,Stationery/Office Supplies,Www.Banneruk.Com,Supplies and Services related expenditure,08/10/2021,2.12,"Director of Housing, Neighbourhood and Building Services"
Government Service,Govt Serv - Default,Pcc Moto Payment,Supplies and Services related expenditure,08/10/2021,30,Director of Children's Services and Education
Business To Business Eqpt/Furn,Stationery/Office Supplies,Www.Banneruk.Com,Supplies and Services related expenditure,08/10/2021,32.31,Director of Children's Services and Education
Transportation Conveyor,"Parking Lots, Meters, Garages",3c_*portsmouth City Coun,Transport related expenditure,08/10/2021,4.17,Director of Children's Services and Education
Transportation Conveyor,Local Commuter Transport,Hovertravel Ltd,Transport related expenditure,08/10/2021,26.8,Director of Children's Services and Education
Other Supplies,Misc Speciality Retail,Www.Mlbadges.Com,Supplies and Services related expenditure,08/10/2021,21.5,Director of Children's Services and Education
Business To Business Services,Misc Publishing & Printing,Www.Solopress.Com,Supplies and Services related expenditure,08/10/2021,133.41,Director of Portsmouth International Port
Airlines,Airlines And Air Carriers,Eastern Airw,Transport related expenditure,08/10/2021,204.99,Director of Corporate Services
Facilities/Repair Supplies,Lawn/Garden Supply/Nursery,Www.Tudorenvironmental,Supplies and Services related expenditure,08/10/2021,1082.4,"Director of Culture, Leisure & Regulatory Services"
Business Services,Business Services - Default,Fast Key Services Limi,Premises related expenditure,08/10/2021,11.09,Director of Children's Services and Education
Type of Retail Store,Grocery Stores/Supermarkets,Iceland,Supplies and Services related expenditure,08/10/2021,8.73,"Director of Housing, Neighbourhood and Building Services"
Caterers Food,Caterers,Bookerecomm,Supplies and Services related expenditure,08/10/2021,322.35,"Director of Housing, Neighbourhood and Building Services"
Medical,Lab/Med/Hospital Equipment,Wightman & Parrish Ltd,Supplies and Services related expenditure,08/10/2021,72.48,"Director of Housing, Neighbourhood and Building Services"
Eating And Drinking Places,Fast Food Restaurants,McDonalds,Agency and Third Party Payments related expenditure,08/10/2021,12.22,Director of Children's Services and Education
Eating And Drinking Places,Fast Food Restaurants,McDonalds,Agency and Third Party Payments related expenditure,08/10/2021,3.49,Director of Children's Services and Education
Eating And Drinking Places,Fast Food Restaurants,De Garden Limited,Agency and Third Party Payments related expenditure,08/10/2021,35.33,Director of Children's Services and Education
Facilities/Repair Supplies,Bicycle Shops/Sales/Service,Portsmouth Cycle Excha,Supplies and Services related expenditure,08/10/2021,100,Director of Regeneration
Digital Goods,Digital Goods - Applications (Excludes Games),Paddle.Net* Tmsplugin,Supplies and Services related expenditure,08/10/2021,46.63,Director of Corporate Services
Transportation Conveyor,"Parking Lots, Meters, Garages",Queen Alexandra Hospit,Transport related expenditure,08/10/2021,3.83,Director of Adult Care
Medical,Lab/Med/Hospital Equipment,Wightman & Parrish,Premises related expenditure,08/10/2021,205.3,"Director of Housing, Neighbourhood and Building Services"
Medical,Lab/Med/Hospital Equipment,Wightman & Parrish,Premises related expenditure,08/10/2021,650.93,"Director of Housing, Neighbourhood and Building Services"
Facilities/Repair Supplies,Lawn/Garden Supply/Nursery,Www.Airpotgarden.Com,Supplies and Services related expenditure,08/10/2021,83.32,"Director of Housing, Neighbourhood and Building Services"
Medical,Lab/Med/Hospital Equipment,Wightman & Parrish,Premises related expenditure,08/10/2021,4.4,"Director of Housing, Neighbourhood and Building Services"
Business To Business Facility/,Industrial Supplies - Def,Arco Limited (Sap),Supplies and Services related expenditure,08/10/2021,77.9,"Director of Housing, Neighbourhood and Building Services"
Facilities/Repair Services,Small Appliance Repair Def,Hooper Services Ltd,Supplies and Services related expenditure,08/10/2021,407.02,"Director of Housing, Neighbourhood and Building Services"
Automobile Services & Supplies,Service Stations,Green Road Service Statio,Supplies and Services related expenditure,08/10/2021,7.01,Director of Children's Services and Education
Business To Business Eqpt/Furn,Stationery/Office Supplies,Www.Banneruk.Com,Supplies and Services related expenditure,08/10/2021,7.54,Chief Exec
Type of Retail Store,Grocery Stores/Supermarkets,Asda Stores,Supplies and Services related expenditure,08/10/2021,91.67,"Director of Housing, Neighbourhood and Building Services"
Other Supplies,Misc Gen Merchandise - Def,Plastic-Id.Com,Supplies and Services related expenditure,08/10/2021,47.95,Director of Children's Services and Education
Other Supplies,Department Stores,Southern Co-Op 0021,Supplies and Services related expenditure,08/10/2021,3.99,Director of Children's Services and Education
Amusement/Entertainment,Motion Picture Theatres,Vue Cinemas,Agency and Third Party Payments related expenditure,08/10/2021,6.9,Director of Children's Services and Education
Clothing Services,Family Clothing Stores,Primark,Supplies and Services related expenditure,08/10/2021,15,Director of Children's Services and Education
Clothing Services,Family Clothing Stores,Next Retail Ltd,Supplies and Services related expenditure,08/10/2021,31.75,Director of Children's Services and Education
Clothing Services,Mens/Womens Clothing Stores,Matalan,Supplies and Services related expenditure,08/10/2021,37.67,Director of Children's Services and Education
Type of Retail Store,Sporting Goods Stores,J D Sports Fashion Plc,Supplies and Services related expenditure,08/10/2021,62.5,Director of Children's Services and Education
Type of Retail Store,Grocery Stores/Supermarkets,Asda Groceries Online,Supplies and Services related expenditure,08/10/2021,-1.8,Director of Children's Services and Education
Type of Retail Store,Grocery Stores/Supermarkets,Asda Groceries Online,Supplies and Services related expenditure,08/10/2021,6.48,Director of Children's Services and Education
Type of Retail Store,Grocery Stores/Supermarkets,Asda Groceries Online,Supplies and Services related expenditure,08/10/2021,73.33,Director of Children's Services and Education
Business To Business Eqpt/Furn,Stationery/Office Supplies,Www.Banneruk.Com,Supplies and Services related expenditure,08/10/2021,7.88,Director of Adult Care
Business Expenses/Services,Postage Stamps,Post Office Counter,Supplies and Services related expenditure,08/10/2021,5.87,Director of Regeneration
Medical,Lab/Med/Hospital Equipment,Wightman & Parrish,Supplies and Services related expenditure,08/10/2021,442.72,Director of Adult Care
Medical,Lab/Med/Hospital Equipment,Wightman & Parrish,Premises related expenditure,08/10/2021,192,Director of Adult Care
Other Supplies,Misc Speciality Retail,Amznmktplace,Supplies and Services related expenditure,08/10/2021,25.26,Director of Adult Care
Business To Business Eqpt/Furn,Stationery/Office Supplies,Www.Banneruk.Com,Supplies and Services related expenditure,08/10/2021,51.37,"Director of Culture, Leisure & Regulatory Services"
Miscellaneous,Charitable/Soc Service Orgs,John Pounds Community,Supplies and Services related expenditure,08/10/2021,52.5,"Director of Housing, Neighbourhood and Building Services"
Type of Retail Store,Electronics Sales,Currys Online,Supplies and Services related expenditure,08/10/2021,140.83,"Director of Culture, Leisure & Regulatory Services"
Eating And Drinking Places,Eating Places/Restaurants,Iz *lily And Lime,Supplies and Services related expenditure,08/10/2021,41.67,Director of Children's Services and Education
Government Service,Govt Serv - Default,Disclosure & Barring,Supplies and Services related expenditure,08/10/2021,13,Director of Children's Services and Education
Business Expenses/Services,Postage Stamps,Post Office Counter,Supplies and Services related expenditure,08/10/2021,14.19,Director of Children's Services and Education
Automobiles and Vehicles,Trailer Camper Dealer,Blenworth Tyres Ltd,Supplies and Services related expenditure,08/10/2021,1450,"Director of Housing, Neighbourhood and Building Services"
Other Supplies,Misc Speciality Retail,Amznmktplace,Supplies and Services related expenditure,09/10/2021,29.19,"Director of Housing, Neighbourhood and Building Services"
Business Expenses/Services,News Dealers/Newsstands,Rajipo Limited,Supplies and Services related expenditure,09/10/2021,4.95,Director of Children's Services and Education
Other Supplies,Misc Gen Merchandise - Def,Wilko Retail Limited,Supplies and Services related expenditure,09/10/2021,4.83,Director of Children's Services and Education
Type of Retail Store,Grocery Stores/Supermarkets,Lidl Gb Waterlooville,Premises related expenditure,09/10/2021,6.66,Director of Children's Services and Education
Other Supplies,Misc Gen Merchandise - Def,B&m Retail Ltd,Supplies and Services related expenditure,09/10/2021,15.82,Director of Children's Services and Education
Type of Retail Store,Grocery Stores/Supermarkets,Thank You,Supplies and Services related expenditure,09/10/2021,11.04,Director of Children's Services and Education
Business Services,Advertising Services,Linkedin Ireland,Supplies and Services related expenditure,09/10/2021,81.56,Director of Corporate Services
Other Supplies,Misc Speciality Retail,Amznmktplace,Supplies and Services related expenditure,09/10/2021,8.32,"Director of Culture, Leisure & Regulatory Services"
Type of Retail Store,Grocery Stores/Supermarkets,Farmfoods 750,Supplies and Services related expenditure,09/10/2021,19.96,Director of Adult Care
Type of Retail Store,Grocery Stores/Supermarkets,Asda Groceries Online,Supplies and Services related expenditure,09/10/2021,71.49,Director of Adult Care
Type of Retail Store,Grocery Stores/Supermarkets,Sainsburys S/mkts,Premises related expenditure,09/10/2021,5.17,Director of Children's Services and Education
Other Supplies,Misc Speciality Retail,Amznbusiness,Supplies and Services related expenditure,09/10/2021,4.36,Director of Children's Services and Education
Other Supplies,Misc Speciality Retail,Amznbusiness,Supplies and Services related expenditure,09/10/2021,4.36,Director of Children's Services and Education
Other Supplies,Misc Speciality Retail,Amznmktplace,Supplies and Services related expenditure,09/10/2021,11.66,Director of Children's Services and Education
Facilities/Repair Supplies,Hardware Stores,50 To One,Supplies and Services related expenditure,09/10/2021,5,"Director of Housing, Neighbourhood and Building Services"
Business Expenses/Services,Courier Services,Milton Keynes Couriers,Supplies and Services related expenditure,09/10/2021,84,Director of Children's Services and Education
Type of Retail Store,Grocery Stores/Supermarkets,Lidl Gb Portsmouth,Supplies and Services related expenditure,09/10/2021,1.67,"Director of Housing, Neighbourhood and Building Services"
Other Supplies,Misc Gen Merchandise - Def,Wilko Retail Limited,Supplies and Services related expenditure,09/10/2021,4.17,"Director of Housing, Neighbourhood and Building Services"
Transportation Conveyor,Taxicabs/Limousines,Uber *trip,Supplies and Services related expenditure,09/10/2021,7.2,"Director of Housing, Neighbourhood and Building Services"
Type of Retail Store,Grocery Stores/Supermarkets,Lidl Gb Portsmouth,Supplies and Services related expenditure,09/10/2021,83.62,"Director of Housing, Neighbourhood and Building Services"
Eating And Drinking Places,Fast Food Restaurants,Just Eat,Agency and Third Party Payments related expenditure,09/10/2021,10.99,Director of Children's Services and Education
Other Supplies,Misc Speciality Retail,Amznbusiness,Supplies and Services related expenditure,09/10/2021,16.61,"Director of Culture, Leisure & Regulatory Services"
Miscellaneous,Continuity/Subscription Mercht,Amazon Prime,Supplies and Services related expenditure,09/10/2021,7.99,Director of Children's Services and Education
Other Supplies,Misc Speciality Retail,Amznmktplace Amazon.Co.Uk,Supplies and Services related expenditure,09/10/2021,4.66,"Director of Culture, Leisure & Regulatory Services"
Other Supplies,Misc Gen Merchandise - Def,Wilko Retail Limited,Supplies and Services related expenditure,09/10/2021,6.6,"Director of Housing, Neighbourhood and Building Services"
Type of Retail Store,Sporting Goods Stores,Millets,Supplies and Services related expenditure,09/10/2021,41.79,"Director of Housing, Neighbourhood and Building Services"
Other Supplies,Misc Speciality Retail,Amznmktplace,Supplies and Services related expenditure,09/10/2021,14.99,Director of Children's Services and Education
Hotels And Motels,Travelodge,Travelodge Gb0000,Employees related expenditure,09/10/2021,11.11,Director of Children's Services and Education
Hotels And Motels,Travelodge,Travelodge Gb0000,Employees related expenditure,09/10/2021,360.99,Director of Children's Services and Education
Transportation Conveyor,"Parking Lots, Meters, Garages",Ncp Limited,Transport related expenditure,10/10/2021,2.17,Director of Children's Services and Education
Type of Retail Store,Hobby/Toy/Game Stores,Smyths Toys Portsmouth,Supplies and Services related expenditure,10/10/2021,88.33,Director of Children's Services and Education
Miscellaneous,Other Direct Marketers,Amazon.Co.Uk,Supplies and Services related expenditure,10/10/2021,30.22,Director of Children's Services and Education
Other Supplies,Misc Speciality Retail,Amznbusiness,Premises related expenditure,10/10/2021,2.49,Director of Children's Services and Education
Other Supplies,Misc Speciality Retail,Amznmktplace,Premises related expenditure,10/10/2021,12.49,Director of Children's Services and Education
Other Supplies,Misc Speciality Retail,Amznmktplace,Supplies and Services related expenditure,10/10/2021,12.5,Director of Children's Services and Education
Type of Retail Store,Grocery Stores/Supermarkets,Waitrose 563,Supplies and Services related expenditure,10/10/2021,28.4,Director of Children's Services and Education
Type of Retail Store,Grocery Stores/Supermarkets,Waitrose 563,Supplies and Services related expenditure,10/10/2021,6,Director of Children's Services and Education
Type of Retail Store,Grocery Stores/Supermarkets,Asda Groceries Online,Supplies and Services related expenditure,10/10/2021,6,Director of Children's Services and Education
Business To Business Facility/,Industrial Supplies - Def,Arco Limited (Ahpp),Supplies and Services related expenditure,04/10/2021,10.39,Director of Portsmouth International Port
Transportation Conveyor,Passenger Railways,Crosscountrycom,Supplies and Services related expenditure,10/10/2021,150.4,Director of Portsmouth International Port
Utility,Phone Serv/Equip Utility,Www.Broadbandbuyer.Co.Uk,Supplies and Services related expenditure,11/10/2021,11.04,"Director of Housing, Neighbourhood and Building Services"
Utility,Phone Serv/Equip Utility,Www.Broadbandbuyer.Co.Uk,Supplies and Services related expenditure,11/10/2021,43.44,"Director of Housing, Neighbourhood and Building Services"
Facilities/Repair Supplies,Lumber/Build. Supply Stores,Screwfix Direct,Premises related expenditure,11/10/2021,26.24,"Director of Housing, Neighbourhood and Building Services"
Facilities/Repair Supplies,Lumber/Build. Supply Stores,Screwfix Direct,Premises related expenditure,11/10/2021,26.24,"Director of Housing, Neighbourhood and Building Services"
Medical,Lab/Med/Hospital Equipment,Wightman & Parrish Ltd,Premises related expenditure,11/10/2021,264.6,"Director of Housing, Neighbourhood and Building Services"
Other Supplies,Combination Catalog & Retail,Www.Acamh.Org,Employees related expenditure,11/10/2021,135,Director of Children's Services and Education
Government Service,Govt Serv - Default,Pcc Moto Payment,Supplies and Services related expenditure,11/10/2021,210,Director of Children's Services and Education
Airlines,British Awys,British A,Supplies and Services related expenditure,11/10/2021,22.8,Director of Portsmouth International Port
Personal Service Provider,Mgmt/Consult/Public Rel Ser,Hqn Limited,Employees related expenditure,11/10/2021,98,"Director of Housing, Neighbourhood and Building Services"
Type of Retail Store,Grocery Stores/Supermarkets,Tesco Stores 4579,Supplies and Services related expenditure,11/10/2021,16.5,Director of Adult Care
Eating And Drinking Places,Fast Food Restaurants,Starbucks Coffee,Supplies and Services related expenditure,11/10/2021,4.4,Director of Children's Services and Education
Type of Retail Store,Sporting Goods Stores,J D Sports Fashion Plc,Supplies and Services related expenditure,11/10/2021,50,Director of Portsmouth International Port
Business To Business Eqpt/Furn,Computers/Peripherals/Software,Www.Chartworld.Com,Supplies and Services related expenditure,11/10/2021,131.9,Director of Portsmouth International Port
Transportation Conveyor,Passenger Railways,Trainline,Transport related expenditure,11/10/2021,52.3,Director of Regeneration
Transportation Conveyor,Passenger Railways,Trainline,Transport related expenditure,11/10/2021,57.4,Director of Regeneration
Transportation Conveyor,Passenger Railways,Trainline.Com,Transport related expenditure,11/10/2021,46.38,Director of Corporate Services
Other Supplies,Misc Speciality Retail,Timpson Ltd,Transport related expenditure,11/10/2021,8.33,"Director of Culture, Leisure & Regulatory Services"
Facilities/Repair Supplies,Lawn/Garden Supply/Nursery,Www.Tudorenvironmental,Supplies and Services related expenditure,11/10/2021,1200,"Director of Culture, Leisure & Regulatory Services"
Type of Retail Store,Grocery Stores/Supermarkets,Sainsburys S Mkts,Supplies and Services related expenditure,11/10/2021,4.75,"Director of Culture, Leisure & Regulatory Services"
Transportation Conveyor,"Parking Lots, Meters, Garages",3c_*portsmouth City Coun,Transport related expenditure,11/10/2021,1.33,Director of Children's Services and Education
Miscellaneous,Continuity/Subscription Mercht,Amazon Prime,Supplies and Services related expenditure,11/10/2021,6.66,Director of Children's Services and Education
Eating And Drinking Places,Fast Food Restaurants,Starbucks Coffee,Agency and Third Party Payments related expenditure,11/10/2021,9.6,Director of Children's Services and Education
Business To Business Eqpt/Furn,Book Stores,Www.Highfields.Co.Uk,Supplies and Services related expenditure,11/10/2021,95.5,Director of Adult Care
Business Services,Business Services - Default,Www.Glasdon.Com,Supplies and Services related expenditure,11/10/2021,14.11,"Director of Housing, Neighbourhood and Building Services"
Business To Business Eqpt/Furn,Stationery/Office Supplies,Www.Banneruk.Com,Supplies and Services related expenditure,11/10/2021,8.8,"Director of Culture, Leisure & Regulatory Services"
Facilities/Repair Supplies,Lawn/Garden Supply/Nursery,Carters Of Swanwic,Supplies and Services related expenditure,11/10/2021,96.32,"Director of Housing, Neighbourhood and Building Services"
Type of Retail Store,Grocery Stores/Supermarkets,Tesco Stores 4579,Supplies and Services related expenditure,11/10/2021,13.29,Director of Adult Care
Transportation Conveyor,Passenger Railways,Swrailway Tck Off,Transport related expenditure,11/10/2021,18.4,Director of Children's Services and Education
Business Expenses/Services,Computer Maint/Svcs - Def,Paypal,Supplies and Services related expenditure,11/10/2021,42.99,"Director of Housing, Neighbourhood and Building Services"
Other Supplies,Misc Speciality Retail,Amznmktplace Amazon.Co.Uk,Supplies and Services related expenditure,11/10/2021,1.45,Director of Children's Services and Education
Type of Retail Store,Sports/Riding Apparel Store,Www.Brigade.Uk.Com,Supplies and Services related expenditure,11/10/2021,13.92,Director of Children's Services and Education
Type of Retail Store,Sports/Riding Apparel Store,Www.Brigade.Uk.Com,Supplies and Services related expenditure,11/10/2021,65.44,Director of Children's Services and Education
Other Supplies,Misc Speciality Retail,Amznmktplace,Supplies and Services related expenditure,11/10/2021,89.09,Director of Children's Services and Education
Other Supplies,Misc Speciality Retail,Amznmktplace,Supplies and Services related expenditure,11/10/2021,24.32,Director of Children's Services and Education
Transportation Conveyor,Local Commuter Transport,Www.Hovertravel.Com,Transport related expenditure,11/10/2021,25.1,Director of Children's Services and Education
Type of Retail Store,Grocery Stores/Supermarkets,Asda Groceries Online,Supplies and Services related expenditure,11/10/2021,-1,Director of Children's Services and Education
Type of Retail Store,Grocery Stores/Supermarkets,Asda Groceries Online,Supplies and Services related expenditure,11/10/2021,6.1,Director of Children's Services and Education
Type of Retail Store,Grocery Stores/Supermarkets,Asda Groceries Online,Supplies and Services related expenditure,11/10/2021,124.33,Director of Children's Services and Education
Medical,Lab/Med/Hospital Equipment,Wightman & Parrish,Premises related expenditure,11/10/2021,263.85,"Director of Housing, Neighbourhood and Building Services"
Medical,Lab/Med/Hospital Equipment,Wightman & Parrish,Premises related expenditure,11/10/2021,482.71,"Director of Housing, Neighbourhood and Building Services"
Government Service,Govt Serv - Default,Pcc Internet Payment,Supplies and Services related expenditure,11/10/2021,11,Director of Children's Services and Education
Government Service,Govt Serv - Default,Pcc Internet Payment,Supplies and Services related expenditure,11/10/2021,11,Director of Children's Services and Education
Government Service,Govt Serv - Default,Pcc Internet Payment,Supplies and Services related expenditure,11/10/2021,11,Director of Children's Services and Education
Government Service,Govt Serv - Default,Pcc Internet Payment,Supplies and Services related expenditure,11/10/2021,11,Director of Children's Services and Education
Business Services,Business Services - Default,Text Anywhere,Supplies and Services related expenditure,11/10/2021,305.4,Director of Children's Services and Education
Business To Business Eqpt/Furn,Stationery/Office Supplies,Www.Banneruk.Com,Supplies and Services related expenditure,11/10/2021,26.73,Director of Adult Care
Business Expenses/Services,Stationery Stores,Www.Plot-It.Co.Uk,Supplies and Services related expenditure,11/10/2021,54.8,Director of Regeneration
Type of Retail Store,Grocery Stores/Supermarkets,Tesco Store 3055,Supplies and Services related expenditure,11/10/2021,17.6,Director of Children's Services and Education
Type of Retail Store,Grocery Stores/Supermarkets,Tesco Store 3055,Supplies and Services related expenditure,11/10/2021,14.16,Director of Children's Services and Education
Type of Retail Store,Grocery Stores/Supermarkets,Tesco Store 3055,Supplies and Services related expenditure,11/10/2021,25.1,Director of Children's Services and Education
Eating And Drinking Places,Fast Food Restaurants,McDonalds,Supplies and Services related expenditure,11/10/2021,16.75,Director of Children's Services and Education
Hotels And Motels,Lodging/Hotels/Motels/Resorts,Last Drop Village Hote,Supplies and Services related expenditure,11/10/2021,164,Director of Children's Services and Education
Other Supplies,Misc Speciality Retail,Amznmktplace Amazon.Co.Uk,Supplies and Services related expenditure,11/10/2021,12.95,Director of Children's Services and Education
Transportation Conveyor,Local Commuter Transport,Www.Hovertravel.Com,Transport related expenditure,11/10/2021,25.1,Director of Children's Services and Education
Transportation Conveyor,Passenger Railways,Sw Railway App,Supplies and Services related expenditure,11/10/2021,127.67,Director of Children's Services and Education
Business To Business Eqpt/Furn,Commercial Equipment - Default,Wire Fittings Designs,Supplies and Services related expenditure,11/10/2021,35.6,"Director of Culture, Leisure & Regulatory Services"
Transportation Conveyor,Passenger Railways,Southern Railway Web,Supplies and Services related expenditure,11/10/2021,9.8,Director of Finance & Resources
Type of Retail Store,Grocery Stores/Supermarkets,Wm Morrisons Store,Supplies and Services related expenditure,11/10/2021,2.5,Director of Children's Services and Education
Type of Retail Store,Grocery Stores/Supermarkets,Wm Morrisons Store,Supplies and Services related expenditure,11/10/2021,50.8,Director of Children's Services and Education
Type of Retail Store,Grocery Stores/Supermarkets,Lidl Gb Portsmouth,Supplies and Services related expenditure,11/10/2021,116.49,Director of Children's Services and Education
Type of Retail Store,Grocery Stores/Supermarkets,Lidl Gb Portsmouth,Supplies and Services related expenditure,11/10/2021,5.1,Director of Children's Services and Education
Type of Retail Store,Grocery Stores/Supermarkets,Farmfoods 750,Supplies and Services related expenditure,11/10/2021,22.48,Director of Children's Services and Education
Type of Retail Store,Grocery Stores/Supermarkets,Farmfoods 750,Supplies and Services related expenditure,11/10/2021,2.5,Director of Children's Services and Education
Type of Retail Store,Grocery Stores/Supermarkets,Farmfoods 750,Supplies and Services related expenditure,11/10/2021,98.65,Director of Children's Services and Education
Business To Business Eqpt/Furn,Stationery/Office Supplies,Www.Banneruk.Com,Supplies and Services related expenditure,11/10/2021,17.15,"Director of Culture, Leisure & Regulatory Services"
Other Supplies,Wholesale Clubs,The Fruit Basket,Supplies and Services related expenditure,11/10/2021,44.17,"Director of Culture, Leisure & Regulatory Services"
Transportation Conveyor,"Parking Lots, Meters, Garages",Southampton University,Transport related expenditure,11/10/2021,4.5,Director of Children's Services and Education
Medical,Nursing/Personal Care Fac,Http://www.Topsdaynurser,Supplies and Services related expenditure,11/10/2021,182.55,Director of Children's Services and Education
Transportation Conveyor,"Parking Lots, Meters, Garages",3c_*portsmouth City Coun,Transport related expenditure,11/10/2021,1.33,Director of Adult Care
Type of Retail Store,Misc Food Stores - Default,Andres Food Bar,Supplies and Services related expenditure,11/10/2021,108,Director of Children's Services and Education
Business Services,Business Services - Default,Fast Key Services Limi,Agency and Third Party Payments related expenditure,11/10/2021,28.12,Director of Children's Services and Education
Government Service,Govt Serv - Default,Portsmouth City Co,Supplies and Services related expenditure,11/10/2021,63.33,Director of Adult Care
Business Expenses/Services,Stationery Stores,Www.Tts-Groups.Co.Uk,Supplies and Services related expenditure,11/10/2021,20.45,Director of Children's Services and Education
Other Supplies,Misc Speciality Retail,Amznmktplace,Premises related expenditure,11/10/2021,14.98,Director of Children's Services and Education
Other Supplies,Discount Stores,Argos Ltd,Supplies and Services related expenditure,11/10/2021,8.33,Director of Children's Services and Education
Other Supplies,Misc Speciality Retail,The Soap Kitchen,Supplies and Services related expenditure,11/10/2021,82.92,Director of Children's Services and Education
Business To Business Eqpt/Furn,Stationery/Office Supplies,Www.Banneruk.Com,Supplies and Services related expenditure,11/10/2021,1.91,Director of Regeneration
Business To Business Eqpt/Furn,Stationery/Office Supplies,Www.Banneruk.Com,Supplies and Services related expenditure,11/10/2021,18.47,Director of Regeneration
Business To Business Eqpt/Furn,Stationery/Office Supplies,Www.Banneruk.Com,Supplies and Services related expenditure,11/10/2021,11.19,Director of Regeneration
Business To Business Eqpt/Furn,Stationery/Office Supplies,Www.Banneruk.Com,Supplies and Services related expenditure,11/10/2021,1.64,"Director of Housing, Neighbourhood and Building Services"
Business To Business Eqpt/Furn,Stationery/Office Supplies,Www.Banneruk.Com,Supplies and Services related expenditure,11/10/2021,24.39,"Director of Housing, Neighbourhood and Building Services"
Other Supplies,Misc Speciality Retail,Timpson Ltd,Supplies and Services related expenditure,11/10/2021,21,"Director of Housing, Neighbourhood and Building Services"
Eating And Drinking Places,Pkg Stores/Beer/Wine/Liquor,New Kwikimart,Supplies and Services related expenditure,11/10/2021,1.5,Director of Children's Services and Education
Type of Retail Store,Grocery Stores/Supermarkets,Asda Stores,Supplies and Services related expenditure,11/10/2021,20.42,Director of Children's Services and Education
Type of Retail Store,Grocery Stores/Supermarkets,Asda Superstore,Supplies and Services related expenditure,11/10/2021,4.88,Director of Adult Care
Other Supplies,Misc Gen Merchandise - Def,Rockfun.Co.Uk,Supplies and Services related expenditure,11/10/2021,12.5,"Director of Housing, Neighbourhood and Building Services"
Other Supplies,Catalog Merchant,Www.Nisbets.Com,Supplies and Services related expenditure,11/10/2021,122.97,"Director of Housing, Neighbourhood and Building Services"
Other Supplies,Misc Speciality Retail,Amznmktplace,Supplies and Services related expenditure,11/10/2021,2.59,"Director of Culture, Leisure & Regulatory Services"
Business Expenses/Services,Books/Periodicals/Newspapers,793immediatemediabristol,Supplies and Services related expenditure,11/10/2021,1400,"Director of Culture, Leisure & Regulatory Services"
Miscellaneous,Financial Inst/Merchandise,Siemens Financial Svs,Supplies and Services related expenditure,11/10/2021,279.45,Director of Adult Care
Type of Retail Store,Grocery Stores/Supermarkets,One Stop 1339,Supplies and Services related expenditure,11/10/2021,11.8,Director of Children's Services and Education
Type of Retail Store,Grocery Stores/Supermarkets,Tesco Store 3055,Supplies and Services related expenditure,11/10/2021,26.17,Director of Children's Services and Education
Type of Retail Store,Grocery Stores/Supermarkets,Tesco Store 3055,Supplies and Services related expenditure,11/10/2021,90.62,Director of Children's Services and Education
Hotels And Motels,Lodging/Hotels/Motels/Resorts,Village Hotel Portsmouth,Supplies and Services related expenditure,11/10/2021,150,Director of Children's Services and Education
Business To Business Facility/,Industrial Supplies - Def,Arco Limited (Sap),Supplies and Services related expenditure,11/10/2021,56.7,"Director of Housing, Neighbourhood and Building Services"
Business To Business Facility/,Industrial Supplies - Def,Arco Limited (Sap),Supplies and Services related expenditure,11/10/2021,57.04,"Director of Housing, Neighbourhood and Building Services"
Business To Business Eqpt/Furn,Stationery/Office Supplies,Www.Banneruk.Com,Supplies and Services related expenditure,11/10/2021,7.3,"Director of Housing, Neighbourhood and Building Services"
Business To Business Eqpt/Furn,Stationery/Office Supplies,Www.Banneruk.Com,Supplies and Services related expenditure,11/10/2021,37.55,"Director of Housing, Neighbourhood and Building Services"
Other Supplies,Misc Speciality Retail,Amznmktplace,Supplies and Services related expenditure,11/10/2021,20.82,Director of Public Health
Other Supplies,Misc Speciality Retail,Amznmktplace,Supplies and Services related expenditure,11/10/2021,22.34,Director of Public Health
Transportation Conveyor,Passenger Railways,Thetrainline.Com,Transport related expenditure,11/10/2021,99,Solent LEP
Other Supplies,Misc Speciality Retail,Amznmktplace,Supplies and Services related expenditure,11/10/2021,22.49,Director of Children's Services and Education
Government Service,Govt Serv - Default,Hampshire County Counc,Agency and Third Party Payments related expenditure,11/10/2021,200,Director of Children's Services and Education
Business To Business Eqpt/Furn,Computer Software Stores,Buyitdirect Co Uk,Supplies and Services related expenditure,11/10/2021,333.28,Director of Children's Services and Education
Business To Business Facility/,Industrial Supplies - Def,Arco Limited (Sap),Supplies and Services related expenditure,11/10/2021,338.93,"Director of Housing, Neighbourhood and Building Services"
Other Supplies,Misc Speciality Retail,Timpson Ltd,Supplies and Services related expenditure,11/10/2021,20.42,"Director of Housing, Neighbourhood and Building Services"
Government Service,Schools - Default,Gl-Assesment.Co.Uk,Supplies and Services related expenditure,11/10/2021,144.5,Director of Children's Services and Education
Government Service,Schools - Default,Gl-Assesment.Co.Uk,Supplies and Services related expenditure,11/10/2021,8.59,Director of Children's Services and Education
Medical,Lab/Med/Hospital Equipment,Wightman & Parrish,Supplies and Services related expenditure,11/10/2021,250.62,Director of Adult Care
Type of Retail Store,Grocery Stores/Supermarkets,Asda Groceries Online,Supplies and Services related expenditure,11/10/2021,-0.07,Director of Children's Services and Education
Type of Retail Store,Grocery Stores/Supermarkets,Asda Groceries Online,Supplies and Services related expenditure,11/10/2021,34.43,Director of Children's Services and Education
Other Supplies,Misc Speciality Retail,Amznmktplace,Supplies and Services related expenditure,11/10/2021,4.16,Director of Corporate Services
Other Supplies,Misc Speciality Retail,Amznmktplace,Supplies and Services related expenditure,11/10/2021,8.29,Director of Children's Services and Education
Other Supplies,Misc Speciality Retail,Amznmktplace,Supplies and Services related expenditure,11/10/2021,8.32,Director of Children's Services and Education
Type of Retail Store,Grocery Stores/Supermarkets,Tesco Stores 4579,Supplies and Services related expenditure,11/10/2021,10.83,Director of Children's Services and Education
Type of Retail Store,Grocery Stores/Supermarkets,Tesco Stores 4579,Supplies and Services related expenditure,11/10/2021,2.08,Director of Children's Services and Education
Type of Retail Store,Grocery Stores/Supermarkets,Tesco Stores 4579,Supplies and Services related expenditure,11/10/2021,25.87,Director of Children's Services and Education
Type of Retail Store,Grocery Stores/Supermarkets,Sainsburys S/mkts,Supplies and Services related expenditure,11/10/2021,20.52,Director of Children's Services and Education
Type of Retail Store,Grocery Stores/Supermarkets,Wm Morrisons Store,Supplies and Services related expenditure,11/10/2021,18,Director of Children's Services and Education
Business To Business Eqpt/Furn,Stationery/Office Supplies,Www.Banneruk.Com,Supplies and Services related expenditure,11/10/2021,48,Director of Children's Services and Education
Business To Business Eqpt/Furn,Stationery/Office Supplies,Www.Banneruk.Com,Supplies and Services related expenditure,11/10/2021,92.29,Director of Children's Services and Education
Type of Retail Store,Sporting Goods Stores,Portsmouth Golf Centre,Agency and Third Party Payments related expenditure,11/10/2021,8.5,Director of Children's Services and Education
Facilities/Repair Supplies,Bicycle Shops/Sales/Service,Halfords 0852,Supplies and Services related expenditure,11/10/2021,11.67,Director of Children's Services and Education
Other Supplies,Discount Stores,Argos Ltd,Supplies and Services related expenditure,11/10/2021,15.83,Director of Children's Services and Education
Type of Retail Store,Grocery Stores/Supermarkets,Tesco Stores 4579,Supplies and Services related expenditure,11/10/2021,0.6,Director of Children's Services and Education
Eating And Drinking Places,Fast Food Restaurants,McDonalds,Agency and Third Party Payments related expenditure,11/10/2021,1.19,Director of Children's Services and Education
Other Supplies,Discount Stores,Poundland Ltd,Premises related expenditure,11/10/2021,2.5,Director of Children's Services and Education
Eating And Drinking Places,Fast Food Restaurants,Costa Coffee 43043880,Agency and Third Party Payments related expenditure,11/10/2021,10.65,Director of Children's Services and Education
Business To Business Eqpt/Furn,Stationery/Office Supplies,Yorkshire Purchasing O,Supplies and Services related expenditure,11/10/2021,4.36,Director of Children's Services and Education
Type of Retail Store,Grocery Stores/Supermarkets,Asda Groceries Online,Supplies and Services related expenditure,11/10/2021,27.5,Director of Children's Services and Education
Type of Retail Store,Grocery Stores/Supermarkets,Asda Groceries Online,Supplies and Services related expenditure,11/10/2021,4.15,Director of Children's Services and Education
Type of Retail Store,Grocery Stores/Supermarkets,Asda Groceries Online,Supplies and Services related expenditure,11/10/2021,41.74,Director of Children's Services and Education
Transportation Conveyor,Passenger Railways,Thetrainline.Com,Transport related expenditure,11/10/2021,33.51,Director of Children's Services and Education
Business To Business Facility/,Industrial Supplies - Def,Arco Limited (Ahpp),Supplies and Services related expenditure,04/10/2021,10.44,"Director of Housing, Neighbourhood and Building Services"
Business To Business Facility/,Industrial Supplies - Def,Arco Limited (Ahpp),Supplies and Services related expenditure,04/10/2021,16.42,Director of Portsmouth International Port
Business To Business Facility/,Industrial Supplies - Def,Arco Limited (Ahpp),Supplies and Services related expenditure,04/10/2021,20.05,Director of Portsmouth International Port
Business To Business Facility/,Industrial Supplies - Def,Arco Limited (Ahpp),Supplies and Services related expenditure,04/10/2021,34.52,Director of Portsmouth International Port
Facilities/Repair Supplies,Home Supply Warehouse Stores,B & Q 1260,Premises related expenditure,04/10/2021,146.85,Director of Children's Services and Education
Business To Business Facility/,Industrial Supplies - Def,Arco Limited (Ahpp),Supplies and Services related expenditure,06/10/2021,30.26,Director of Portsmouth International Port
Hotels And Motels,Premier Travel Inns,Premier Inn44033260,Supplies and Services related expenditure,11/10/2021,42.5,Director of Children's Services and Education
Other Supplies,Misc Speciality Retail,Amznbusiness,Premises related expenditure,11/10/2021,10.83,Director of Children's Services and Education
Other Supplies,Misc Speciality Retail,Amznbusiness,Supplies and Services related expenditure,11/10/2021,18.72,Director of Children's Services and Education
Hotels And Motels,Premier Travel Inns,Premier Inn 44535935,Transport related expenditure,11/10/2021,45.83,Director of Children's Services and Education
Utility,Computer Network/Info Svcs,Paypal,Supplies and Services related expenditure,11/10/2021,21.91,Director of Children's Services and Education
Business To Business Facility/,Industrial Supplies - Def,Arco Limited (Ahpp),Supplies and Services related expenditure,11/10/2021,33.44,"Director of Housing, Neighbourhood and Building Services"
Type of Retail Store,Grocery Stores/Supermarkets,Iceland Foods,Supplies and Services related expenditure,11/10/2021,56.97,Director of Children's Services and Education
Freight/Courier/Warehouse Svcs,Public Warehousing,Lok N Store,Premises related expenditure,12/10/2021,243,"Director of Housing, Neighbourhood and Building Services"
Other Supplies,Misc Speciality Retail,Amznmktplace,Supplies and Services related expenditure,12/10/2021,11.66,Director of Finance & Resources
Business To Business Eqpt/Furn,Stationery/Office Supplies,Www.Banneruk.Com,Supplies and Services related expenditure,12/10/2021,16.71,Director of Children's Services and Education
Business To Business Eqpt/Furn,Stationery/Office Supplies,Www.Banneruk.Com,Supplies and Services related expenditure,12/10/2021,32.89,Director of Children's Services and Education
Government Service,Schools - Default,Constructioncertificat,Employees related expenditure,12/10/2021,35.83,"Director of Housing, Neighbourhood and Building Services"
Government Service,Schools - Default,Constructioncertificat,Employees related expenditure,12/10/2021,35.83,"Director of Housing, Neighbourhood and Building Services"
Government Service,Schools - Default,Constructioncertificat,Employees related expenditure,12/10/2021,35.83,"Director of Housing, Neighbourhood and Building Services"
Personal Service Provider,Mgmt/Consult/Public Rel Ser,Hqn Limited,Employees related expenditure,12/10/2021,199,"Director of Housing, Neighbourhood and Building Services"
Type of Retail Store,Grocery Stores/Supermarkets,Aldi Stores Ltd,Supplies and Services related expenditure,12/10/2021,5.35,"Director of Housing, Neighbourhood and Building Services"
Type of Retail Store,Grocery Stores/Supermarkets,Aldi Stores Ltd,Supplies and Services related expenditure,12/10/2021,13.72,"Director of Housing, Neighbourhood and Building Services"
Other Supplies,Misc Gen Merchandise - Def,B&m 566 - Farlington,Supplies and Services related expenditure,12/10/2021,82.5,"Director of Housing, Neighbourhood and Building Services"
Transportation Conveyor,Passenger Railways,Thetrainline.Com,Supplies and Services related expenditure,12/10/2021,10.12,Director of Children's Services and Education
Type of Retail Store,Grocery Stores/Supermarkets,Wm Morrisons Store,Supplies and Services related expenditure,12/10/2021,11.25,Director of Children's Services and Education
Other Supplies,Misc Gen Merchandise - Def,B&m Retail Ltd,Supplies and Services related expenditure,12/10/2021,30.56,Director of Children's Services and Education
Other Supplies,Misc Gen Merchandise - Def,B&m Retail Ltd,Supplies and Services related expenditure,12/10/2021,51.3,Director of Children's Services and Education
Facilities/Repair Supplies,Misc Home Furnishing,Tillys Beds Ltd,Supplies and Services related expenditure,12/10/2021,150,Director of Children's Services and Education
Freight/Courier/Warehouse Svcs,Motor Freight Carriers,Williams Shipping,Transport related expenditure,12/10/2021,227,Director of Portsmouth International Port
Type of Retail Store,Hobby/Toy/Game Stores,Amz*graff-City Store,Supplies and Services related expenditure,12/10/2021,76.37,Director of Regeneration
Transportation Conveyor,Passenger Railways,Trainline,Transport related expenditure,12/10/2021,347.4,Director of Regeneration
Facilities/Repair Supplies,Home Supply Warehouse Stores,B & Q 1260,Supplies and Services related expenditure,12/10/2021,66.67,Director of Children's Services and Education
Medical,Lab/Med/Hospital Equipment,Wightman & Parrish,Premises related expenditure,12/10/2021,43.63,"Director of Housing, Neighbourhood and Building Services"
Eating And Drinking Places,Eating Places/Restaurants,Brewhouse,Supplies and Services related expenditure,12/10/2021,28.05,"Director of Culture, Leisure & Regulatory Services"
Type of Retail Store,Grocery Stores/Supermarkets,Tesco Stores 4579,Premises related expenditure,12/10/2021,13.83,Director of Children's Services and Education
Type of Retail Store,Grocery Stores/Supermarkets,Tesco Stores 4579,Supplies and Services related expenditure,12/10/2021,11.39,Director of Children's Services and Education
Other Supplies,Misc Speciality Retail,Amznmktplace,Premises related expenditure,12/10/2021,3.33,Director of Children's Services and Education
Other Supplies,Misc Speciality Retail,Amznmktplace,Premises related expenditure,12/10/2021,5.33,Director of Children's Services and Education
Miscellaneous,Other Direct Marketers,Amazon.Co.Uk,Supplies and Services related expenditure,12/10/2021,31.24,Director of Children's Services and Education
Government Service,Schools - Default,Www.Elklan.Co.Uk,Supplies and Services related expenditure,12/10/2021,45,Director of Children's Services and Education
Government Service,Schools - Default,Www.Elklan.Co.Uk,Supplies and Services related expenditure,12/10/2021,6,Director of Children's Services and Education
Miscellaneous,Other Direct Marketers,Amazon.Co.Uk,Supplies and Services related expenditure,12/10/2021,62.49,Director of Children's Services and Education
Utility,Utilities/Elec/Gas/H2O/Sani,British Gas Otp,Supplies and Services related expenditure,12/10/2021,194.75,Director of Adult Care
Business Services,Advertising Services,Linkedin Ireland,Supplies and Services related expenditure,12/10/2021,91.63,Director of Corporate Services
Transportation Conveyor,Local Commuter Transport,Gosport Ferry Limited,Transport related expenditure,12/10/2021,9.7,Director of Children's Services and Education
Transportation Conveyor,Bus Lines/Charter/Tour,First Bus,Transport related expenditure,12/10/2021,18,Director of Children's Services and Education
Type of Retail Store,Grocery Stores/Supermarkets,Tesco Store 3048,Supplies and Services related expenditure,12/10/2021,25,Director of Children's Services and Education
Business Expenses/Services,Computer Maint/Svcs - Def,Paypal,Supplies and Services related expenditure,12/10/2021,-42.99,"Director of Housing, Neighbourhood and Building Services"
Transportation Conveyor,"Parking Lots, Meters, Garages",3c_*portsmouth City Coun,Transport related expenditure,12/10/2021,1.33,Director of Children's Services and Education
Type of Retail Store,Grocery Stores/Supermarkets,Cedar News,Supplies and Services related expenditure,12/10/2021,20,Director of Children's Services and Education
Amusement/Entertainment,Member Clubs/Sport/Rec/Golf,Lemur Attractions,Agency and Third Party Payments related expenditure,12/10/2021,65,Director of Children's Services and Education
Amusement/Entertainment,Member Clubs/Sport/Rec/Golf,Team Sport Karting,Agency and Third Party Payments related expenditure,12/10/2021,33.33,Director of Children's Services and Education
Amusement/Entertainment,Member Clubs/Sport/Rec/Golf,Team Sport Karting,Agency and Third Party Payments related expenditure,12/10/2021,33.33,Director of Children's Services and Education
Amusement/Entertainment,Member Clubs/Sport/Rec/Golf,Team Sport Karting,Agency and Third Party Payments related expenditure,12/10/2021,33.33,Director of Children's Services and Education
Amusement/Entertainment,Member Clubs/Sport/Rec/Golf,Team Sport Karting,Agency and Third Party Payments related expenditure,12/10/2021,33.33,Director of Children's Services and Education
Amusement/Entertainment,Member Clubs/Sport/Rec/Golf,Team Sport Karting,Agency and Third Party Payments related expenditure,12/10/2021,33.33,Director of Children's Services and Education
Amusement/Entertainment,Theatrical Producers,Thorpe Park,Agency and Third Party Payments related expenditure,12/10/2021,60.28,Director of Children's Services and Education
Amusement/Entertainment,Theatrical Producers,Thorpe Park,Agency and Third Party Payments related expenditure,12/10/2021,60.28,Director of Children's Services and Education
Amusement/Entertainment,Theatrical Producers,Thorpe Park,Agency and Third Party Payments related expenditure,12/10/2021,60.28,Director of Children's Services and Education
Other Supplies,Discount Stores,Argos Ltd,Supplies and Services related expenditure,12/10/2021,87.49,Director of Children's Services and Education
Personal Service Provider,Computer Program/Sys Design,Squarespace Inc.,Supplies and Services related expenditure,12/10/2021,15.18,Director of Children's Services and Education
Transportation Conveyor,Passenger Railways,Trainline,Transport related expenditure,12/10/2021,32.75,Director of Children's Services and Education
Business To Business Other Sup,Uniforms & Commercial Clothing,Www.Clothes2order.Com,Supplies and Services related expenditure,12/10/2021,111.67,Director of Children's Services and Education
Business Expenses/Services,Postage Stamps,Royal Mail Online Shop,Supplies and Services related expenditure,12/10/2021,288.78,"Director of Culture, Leisure & Regulatory Services"
Business To Business Services,Misc Publishing & Printing,Printed Com,Supplies and Services related expenditure,12/10/2021,31.27,"Director of Culture, Leisure & Regulatory Services"
Other Supplies,Misc Speciality Retail,Amznmktplace,Supplies and Services related expenditure,12/10/2021,9.16,Director of Adult Care
Eating And Drinking Places,Eating Places/Restaurants,Still & West,Supplies and Services related expenditure,12/10/2021,3.46,Director of Portsmouth International Port
Eating And Drinking Places,Eating Places/Restaurants,Still & West,Supplies and Services related expenditure,12/10/2021,144.85,Director of Portsmouth International Port
Business To Business Other Sup,Uniforms & Commercial Clothing,Alexandra Website,Supplies and Services related expenditure,12/10/2021,80.85,Director of Adult Care
Business To Business Other Sup,Uniforms & Commercial Clothing,Alexandra Website,Supplies and Services related expenditure,12/10/2021,120.97,Director of Adult Care
Business To Business Facility/,Electrical Parts/Equipment,Edmundson Electrical,Premises related expenditure,12/10/2021,140.73,Director of Portsmouth International Port
Transportation Conveyor,Passenger Railways,Thetrainline.Com,Supplies and Services related expenditure,12/10/2021,38.19,Director of Children's Services and Education
Transportation Conveyor,Passenger Railways,Thetrainline.Com,Supplies and Services related expenditure,12/10/2021,64.22,Director of Children's Services and Education
Transportation Conveyor,Passenger Railways,Trainline.Com,Supplies and Services related expenditure,12/10/2021,64.22,Director of Children's Services and Education
Other Supplies,Misc Speciality Retail,Amznmktplace,Supplies and Services related expenditure,12/10/2021,13.23,Director of Portsmouth International Port
Transportation Conveyor,Passenger Railways,Swrailway Tck Off,Supplies and Services related expenditure,12/10/2021,9.8,Director of Finance & Resources
Other Supplies,Misc Speciality Retail,Https://Www.Thedyslexi,Supplies and Services related expenditure,12/10/2021,18.31,Director of Children's Services and Education
Eating And Drinking Places,Fast Food Restaurants,Costa Coffee 43040140,Supplies and Services related expenditure,12/10/2021,5.9,Director of Children's Services and Education
Facilities/Repair Supplies,Bicycle Shops/Sales/Service,Halfords On Line,Agency and Third Party Payments related expenditure,12/10/2021,275,Director of Children's Services and Education
Transportation Conveyor,"Parking Lots, Meters, Garages",Southampton University,Transport related expenditure,12/10/2021,3.17,Director of Children's Services and Education
Hotels And Motels,Lodging/Hotels/Motels/Resorts,Hotel At Booking.Com,Supplies and Services related expenditure,12/10/2021,69,Director of Children's Services and Education
Type of Retail Store,Grocery Stores/Supermarkets,Tesco Stores 6679,Supplies and Services related expenditure,12/10/2021,16.67,Director of Children's Services and Education
Other Supplies,Misc Gen Merchandise - Def,B&m Retail Ltd,Supplies and Services related expenditure,12/10/2021,33,"Director of Housing, Neighbourhood and Building Services"
Business Services,Business Services - Default,Www.Local.Gov.Uk,Employees related expenditure,12/10/2021,644.4,Director of Adult Care
Transportation Conveyor,"Parking Lots, Meters, Garages",Queen Alexandra Hospit,Transport related expenditure,12/10/2021,3.83,Director of Adult Care
Business To Business Eqpt/Furn,Stationery/Office Supplies,Www.Banneruk.Com,Supplies and Services related expenditure,12/10/2021,2.25,Director of Regeneration
Type of Retail Store,Grocery Stores/Supermarkets,Tesco Stores 4611,Supplies and Services related expenditure,12/10/2021,4.85,Director of Children's Services and Education
Clothing Services,Mens/Womens Clothing Stores,Matalan,Supplies and Services related expenditure,12/10/2021,10,Director of Children's Services and Education
Other Supplies,Misc Speciality Retail,Amznmktplace,Supplies and Services related expenditure,12/10/2021,1.52,Director of Children's Services and Education
Other Supplies,Discount Stores,Poundland Ltd 1477,Supplies and Services related expenditure,12/10/2021,6.67,Director of Children's Services and Education
Miscellaneous,Other Direct Marketers,Amazon.Co.Uk,Supplies and Services related expenditure,12/10/2021,13.31,Director of Children's Services and Education
Other Supplies,Misc Speciality Retail,Amznmktplace,Supplies and Services related expenditure,12/10/2021,22.47,Director of Children's Services and Education
Type of Retail Store,Grocery Stores/Supermarkets,Asda Stores,Supplies and Services related expenditure,12/10/2021,18.33,Director of Children's Services and Education
Type of Retail Store,Grocery Stores/Supermarkets,Asda Stores,Supplies and Services related expenditure,12/10/2021,7.73,Director of Children's Services and Education
Type of Retail Store,Grocery Stores/Supermarkets,Tesco Stores 4611,Transport related expenditure,12/10/2021,8.33,Director of Children's Services and Education
Type of Retail Store,Grocery Stores/Supermarkets,Tesco Stores 4611,Transport related expenditure,12/10/2021,83.33,Director of Children's Services and Education
Amusement/Entertainment,Theatrical Producers,Mad World Ltd.,Employees related expenditure,12/10/2021,66.5,"Director of Housing, Neighbourhood and Building Services"
Automobile Services & Supplies,Service Stations,Tesco Pfs 2339,Transport related expenditure,12/10/2021,50,Director of Children's Services and Education
Facilities/Repair Supplies,Lawn/Garden Supply/Nursery,Carters Of Swanwic,Supplies and Services related expenditure,12/10/2021,69.54,"Director of Housing, Neighbourhood and Building Services"
Business To Business Other Sup,Non-Durable Goods - Default,Advanced Disposables,Supplies and Services related expenditure,12/10/2021,25.07,"Director of Housing, Neighbourhood and Building Services"
Clothing Services,Misc Apparel/Access Shops,Etsy.Com - Fabricsandbunt,Supplies and Services related expenditure,12/10/2021,39.99,"Director of Housing, Neighbourhood and Building Services"
Government Service,Schools - Default,Constructioncertificat,Employees related expenditure,12/10/2021,43,"Director of Housing, Neighbourhood and Building Services"
Business To Business Services,Misc Publishing & Printing,Weprint.Avery.Co.Uk,Supplies and Services related expenditure,12/10/2021,12.49,"Director of Culture, Leisure & Regulatory Services"
Type of Retail Store,Grocery Stores/Supermarkets,Gillett London Road,Supplies and Services related expenditure,12/10/2021,3.78,Director of Adult Care
Facilities/Repair Supplies,Lumber/Build. Supply Stores,Screwfix Dir Ltd,Supplies and Services related expenditure,12/10/2021,-14.35,"Director of Housing, Neighbourhood and Building Services"
Facilities/Repair Supplies,Lumber/Build. Supply Stores,Screwfix Dir Ltd,Supplies and Services related expenditure,12/10/2021,26.31,"Director of Housing, Neighbourhood and Building Services"
Facilities/Repair Supplies,Lumber/Build. Supply Stores,Screwfix Dir Ltd,Supplies and Services related expenditure,12/10/2021,28.7,"Director of Housing, Neighbourhood and Building Services"
Type of Retail Store,Sports/Riding Apparel Store,Klarna Micro Scooters,Supplies and Services related expenditure,12/10/2021,94.96,Director of Children's Services and Education
Other Supplies,Misc Speciality Retail,Amznmktplace,Supplies and Services related expenditure,12/10/2021,8.32,Director of Public Health
Other Supplies,Misc Speciality Retail,Amznmktplace Amazon.Co.Uk,Supplies and Services related expenditure,12/10/2021,9.99,Director of Public Health
Other Supplies,Misc Speciality Retail,Amznmktplace,Supplies and Services related expenditure,12/10/2021,15.82,Director of Public Health
Other Supplies,Misc Speciality Retail,Amznbusiness,Supplies and Services related expenditure,12/10/2021,31.47,Director of Public Health
Facilities/Repair Supplies,Lawn/Garden Supply/Nursery,Hambrook Garden Su,Supplies and Services related expenditure,12/10/2021,62.49,"Director of Housing, Neighbourhood and Building Services"
Other Supplies,Misc Speciality Retail,Amznmktplace,Supplies and Services related expenditure,12/10/2021,4.07,Director of Children's Services and Education
Hotels And Motels,Lodging/Hotels/Motels/Resorts,Ibis York Centre,Supplies and Services related expenditure,12/10/2021,91.8,Director of Regeneration
Transportation Conveyor,Passenger Railways,Eastmidlandscom,Transport related expenditure,12/10/2021,98.9,Director of Regeneration
Government Service,Govt Serv - Default,Pcc Internet Payment,Supplies and Services related expenditure,12/10/2021,11,"Director of Housing, Neighbourhood and Building Services"
Business To Business Facility/,Hardware Equipment/Supplies,Croma Locksmiths & Sec,Capital related expenditure,12/10/2021,25,Capital - Leader
Facilities/Repair Supplies,Home Supply Warehouse Stores,B & Q 1260,Premises related expenditure,12/10/2021,18.16,Director of Children's Services and Education
Facilities/Repair Supplies,Home Supply Warehouse Stores,B & Q 1260,Premises related expenditure,12/10/2021,22.3,Director of Children's Services and Education
Amusement/Entertainment,Amusement/Rec Serv - Def,Peter Ashley Activity Cen,Agency and Third Party Payments related expenditure,12/10/2021,48,Director of Children's Services and Education
Facilities/Repair Supplies,Home Supply Warehouse Stores,B & Q 1260,Premises related expenditure,12/10/2021,13.46,Director of Adult Care
Type of Retail Store,Artist/Craft Shops,Baker Ross,Supplies and Services related expenditure,12/10/2021,15.79,Director of Children's Services and Education
Business To Business Eqpt/Furn,Stationery/Office Supplies,Www.Banneruk.Com,Supplies and Services related expenditure,12/10/2021,15.76,Director of Adult Care
Type of Retail Store,Grocery Stores/Supermarkets,Asda Groceries Online,Supplies and Services related expenditure,12/10/2021,-0.88,Director of Children's Services and Education
Type of Retail Store,Grocery Stores/Supermarkets,Asda Groceries Online,Supplies and Services related expenditure,12/10/2021,46.35,Director of Children's Services and Education
Eating And Drinking Places,Eating Places/Restaurants,McDonalds,Supplies and Services related expenditure,12/10/2021,5.49,Director of Children's Services and Education
Eating And Drinking Places,Fast Food Restaurants,Kfc,Supplies and Services related expenditure,12/10/2021,7.15,Director of Children's Services and Education
Transportation Conveyor,Travel Agencies,Hotelscom9176710349984,Supplies and Services related expenditure,12/10/2021,81.67,Director of Children's Services and Education
Transportation Conveyor,Passenger Railways,Thetrainline.Com,Supplies and Services related expenditure,12/10/2021,145.9,Director of Children's Services and Education
Type of Retail Store,Misc Food Stores - Default,Real Country Butchers,Supplies and Services related expenditure,12/10/2021,60,Director of Children's Services and Education
Other Supplies,Misc Speciality Retail,Amznmktplace,Supplies and Services related expenditure,12/10/2021,11.23,Director of Children's Services and Education
Utility,Phone Serv/Equip Utility,Giffgaff,Supplies and Services related expenditure,12/10/2021,25,Director of Children's Services and Education
Business To Business Facility/,Hardware Equipment/Supplies,Vl Architectural Ironm,Supplies and Services related expenditure,12/10/2021,57,"Director of Housing, Neighbourhood and Building Services"
Type of Retail Store,Artist/Craft Shops,Derwentlase,Supplies and Services related expenditure,12/10/2021,14.67,Director of Adult Care
Business Expenses/Services,Postage Stamps,Post Office Counter,Supplies and Services related expenditure,12/10/2021,4.5,Director of Children's Services and Education
Other Supplies,Misc Speciality Retail,Amz*fast Shipping - Pu,Supplies and Services related expenditure,12/10/2021,-9.99,Director of Regeneration
Type of Retail Store,Grocery Stores/Supermarkets,Tesco Stores 4579,Supplies and Services related expenditure,12/10/2021,1.67,Director of Children's Services and Education
Type of Retail Store,Grocery Stores/Supermarkets,Tesco Stores 4579,Supplies and Services related expenditure,12/10/2021,2,Director of Children's Services and Education
Type of Retail Store,Grocery Stores/Supermarkets,Tesco Stores 4579,Supplies and Services related expenditure,12/10/2021,14.05,Director of Children's Services and Education
Facilities/Repair Supplies,Hardware Stores,Robert Dyas Holdng Ltd,Supplies and Services related expenditure,12/10/2021,13.98,Director of Children's Services and Education
Hotels And Motels,Lodging/Hotels/Motels/Resorts,Hotel At Booking.Com,Supplies and Services related expenditure,12/10/2021,94.5,Director of Children's Services and Education
Business To Business Eqpt/Furn,Stationery/Office Supplies,Www.Banneruk.Com,Supplies and Services related expenditure,12/10/2021,5.2,Director of Adult Care
Type of Retail Store,Grocery Stores/Supermarkets,Iceland Foods,Supplies and Services related expenditure,12/10/2021,45.6,Director of Adult Care
Other Supplies,Misc Speciality Retail,Amznmktplace Amazon.Co.Uk,Supplies and Services related expenditure,12/10/2021,6.24,Director of Children's Services and Education
Clothing Services,Family Clothing Stores,Primark,Supplies and Services related expenditure,12/10/2021,4.17,Director of Children's Services and Education
Other Supplies,Misc Speciality Retail,Amznbusiness,Supplies and Services related expenditure,12/10/2021,16.66,Director of Adult Care
Other Supplies,Catalog Merchant,Www.Nisbets.Com,Supplies and Services related expenditure,12/10/2021,45.98,"Director of Housing, Neighbourhood and Building Services"
Business To Business Eqpt/Furn,Stationery/Office Supplies,Www.Banneruk.Com,Supplies and Services related expenditure,13/10/2021,15.36,"Director of Housing, Neighbourhood and Building Services"
Business To Business Eqpt/Furn,Stationery/Office Supplies,Www.Banneruk.Com,Supplies and Services related expenditure,13/10/2021,63.65,"Director of Housing, Neighbourhood and Building Services"
Government Service,Govt Serv - Default,Www.Moneyclaim.Gov,Supplies and Services related expenditure,13/10/2021,80,"Director of Housing, Neighbourhood and Building Services"
Facilities/Repair Supplies,Home Supply Warehouse Stores,B & Q 1260,Supplies and Services related expenditure,13/10/2021,9.58,"Director of Housing, Neighbourhood and Building Services"
Type of Retail Store,Grocery Stores/Supermarkets,Lidl Gb Portsmouth,Supplies and Services related expenditure,13/10/2021,12,Director of Children's Services and Education
Facilities/Repair Supplies,Lumber/Build. Supply Stores,Screwfix Dir Ltd,Premises related expenditure,13/10/2021,29.83,Director of Children's Services and Education
Type of Retail Store,Grocery Stores/Supermarkets,Lidl Gb Portsmouth,Supplies and Services related expenditure,13/10/2021,46.12,Director of Children's Services and Education
Other Supplies,Misc Speciality Retail,Timpson Ltd,Premises related expenditure,13/10/2021,85.33,"Director of Housing, Neighbourhood and Building Services"
Facilities/Repair Supplies,Hardware Stores,World Of Garden Produc,Supplies and Services related expenditure,13/10/2021,13.32,"Director of Housing, Neighbourhood and Building Services"
Facilities/Repair Supplies,Lumber/Build. Supply Stores,Screwfix Direct,Supplies and Services related expenditure,13/10/2021,29.12,"Director of Housing, Neighbourhood and Building Services"
Other Supplies,Misc Speciality Retail,Amznmktplace,Supplies and Services related expenditure,13/10/2021,23.37,Director of Portsmouth International Port
Facilities/Repair Services,Spec Contractors - Default,Www.Acornfiresecurity.,Premises related expenditure,13/10/2021,11.15,Director of Children's Services and Education
Other Supplies,Misc Speciality Retail,Amznmktplace,Supplies and Services related expenditure,13/10/2021,19.99,Director of Children's Services and Education
Type of Retail Store,Grocery Stores/Supermarkets,Tesco Stores 6577,Supplies and Services related expenditure,13/10/2021,4.45,Director of Children's Services and Education
Type of Retail Store,Grocery Stores/Supermarkets,Tesco Stores 6577,Supplies and Services related expenditure,13/10/2021,0.17,Director of Children's Services and Education
Other Supplies,Misc Speciality Retail,Amznmktplace,Supplies and Services related expenditure,13/10/2021,173.22,Director of Children's Services and Education
Government Service,Govt Serv - Default,Portsmouth City Co,Transport related expenditure,13/10/2021,63.33,Director of Adult Care
Other Supplies,Misc Gen Merchandise - Def,B&m 566 - Farlington,Supplies and Services related expenditure,13/10/2021,42.48,Director of Children's Services and Education
Business Services,Business Services - Default,Www.Planning.Co,Supplies and Services related expenditure,13/10/2021,249.52,"Director of Culture, Leisure & Regulatory Services"
Equipment And Furniture,Household Appliance Stores,Machine Mart Ltd,Transport related expenditure,13/10/2021,27.97,Director of Adult Care
Equipment And Furniture,Household Appliance Stores,Machine Mart Ltd,Transport related expenditure,13/10/2021,399,Director of Adult Care
Facilities/Repair Supplies,Lawn/Garden Supply/Nursery,M & S Enterprises,Supplies and Services related expenditure,13/10/2021,743.49,"Director of Housing, Neighbourhood and Building Services"
Facilities/Repair Supplies,Lawn/Garden Supply/Nursery,M & S Enterprises,Supplies and Services related expenditure,13/10/2021,833.33,"Director of Housing, Neighbourhood and Building Services"
Business Services,Advertising Services,Facebk Hqzun9t8z2,Supplies and Services related expenditure,13/10/2021,700,Director of Corporate Services
Transportation Conveyor,Passenger Railways,Thetrainline.Com,Supplies and Services related expenditure,13/10/2021,20.65,Director of Children's Services and Education
Transportation Conveyor,Passenger Railways,Thetrainline.Com,Supplies and Services related expenditure,13/10/2021,31.43,Director of Children's Services and Education
Transportation Conveyor,Passenger Railways,Swrailway Tck Off,Transport related expenditure,13/10/2021,44.8,Director of Children's Services and Education
Type of Retail Store,Grocery Stores/Supermarkets,Tesco Stores 6841,Supplies and Services related expenditure,13/10/2021,7.15,"Director of Housing, Neighbourhood and Building Services"
Type of Retail Store,Grocery Stores/Supermarkets,Lidl Gb Portsmouth,Supplies and Services related expenditure,13/10/2021,5.83,Director of Adult Care
Other Supplies,Misc Speciality Retail,Amznmktplace,Employees related expenditure,13/10/2021,7.49,Director of Children's Services and Education
Business Services,Business Services - Default,Hamilton Education,Supplies and Services related expenditure,13/10/2021,135,Director of Children's Services and Education
Clothing Services,Mens/Womens Clothing Stores,Bbc Children In Need,Supplies and Services related expenditure,13/10/2021,183.33,Director of Children's Services and Education
Clothing Services,Mens/Womens Clothing Stores,Bbc Children In Need,Supplies and Services related expenditure,13/10/2021,6.67,Director of Children's Services and Education
Other Supplies,Misc Speciality Retail,Amznmktplace,Supplies and Services related expenditure,13/10/2021,587.47,Director of Children's Services and Education
Transportation Conveyor,Passenger Railways,Swrailway Tck Off,Supplies and Services related expenditure,13/10/2021,34,Director of Children's Services and Education
Government Service,Govt Serv - Default,Hm Passport Newport,Supplies and Services related expenditure,13/10/2021,85,Director of Children's Services and Education
Government Service,Govt Serv - Default,Hm Passport Newport,Supplies and Services related expenditure,13/10/2021,85,Director of Children's Services and Education
Transportation Conveyor,Passenger Railways,Thetrainline.Com,Transport related expenditure,13/10/2021,46.7,Director of Corporate Services
Miscellaneous,Films/Video Production/Dist,Doglaw Limited,Employees related expenditure,13/10/2021,240,"Director of Housing, Neighbourhood and Building Services"
Government Service,Govt Serv - Default,Hampshire County Counc,Supplies and Services related expenditure,13/10/2021,398.64,Director of Children's Services and Education
Medical,Lab/Med/Hospital Equipment,Wightman & Parrish Ltd,Premises related expenditure,13/10/2021,101.34,"Director of Housing, Neighbourhood and Building Services"
Medical,Lab/Med/Hospital Equipment,Wightman & Parrish Ltd,Premises related expenditure,13/10/2021,105.65,"Director of Housing, Neighbourhood and Building Services"
Medical,Lab/Med/Hospital Equipment,Wightman & Parrish Ltd,Premises related expenditure,13/10/2021,171.39,"Director of Housing, Neighbourhood and Building Services"
Medical,Lab/Med/Hospital Equipment,Wightman & Parrish Ltd,Premises related expenditure,13/10/2021,193.76,"Director of Housing, Neighbourhood and Building Services"
Medical,Lab/Med/Hospital Equipment,Wightman & Parrish Ltd,Premises related expenditure,13/10/2021,484.44,"Director of Housing, Neighbourhood and Building Services"
Eating And Drinking Places,Fast Food Restaurants,Kfc Portsmouth,Supplies and Services related expenditure,13/10/2021,6.66,Director of Children's Services and Education
Type of Retail Store,Grocery Stores/Supermarkets,Lidl Gb Portsmouth,Supplies and Services related expenditure,13/10/2021,9.31,"Director of Housing, Neighbourhood and Building Services"
Type of Retail Store,Grocery Stores/Supermarkets,Lidl Gb Portsmouth,Supplies and Services related expenditure,13/10/2021,24.03,"Director of Housing, Neighbourhood and Building Services"
Facilities/Repair Supplies,Misc Home Furnishing,The Range,Supplies and Services related expenditure,13/10/2021,5.97,"Director of Housing, Neighbourhood and Building Services"
Facilities/Repair Supplies,Misc Home Furnishing,The Range,Supplies and Services related expenditure,13/10/2021,28.78,"Director of Housing, Neighbourhood and Building Services"
Other Supplies,Misc Gen Merchandise - Def,B&m Retail Ltd,Supplies and Services related expenditure,13/10/2021,60.75,"Director of Housing, Neighbourhood and Building Services"
Business To Business Eqpt/Furn,Stationery/Office Supplies,Www.Banneruk.Com,Supplies and Services related expenditure,13/10/2021,26.73,Director of Adult Care
Type of Retail Store,Grocery Stores/Supermarkets,Tesco Stores 4579,Supplies and Services related expenditure,13/10/2021,4.87,Director of Adult Care
Type of Retail Store,Grocery Stores/Supermarkets,Tesco Stores 4579,Supplies and Services related expenditure,13/10/2021,8.75,Director of Adult Care
Medical,Lab/Med/Hospital Equipment,Wightman & Parrish,Premises related expenditure,13/10/2021,57.03,"Director of Housing, Neighbourhood and Building Services"
Facilities/Repair Services,Landscape/Horticultural Se,Busy Bee Garden Centre,Supplies and Services related expenditure,13/10/2021,8.15,Director of Children's Services and Education
Auto/Vehicle Expenses,Toll And Bridge Fees,M6 Toll,Supplies and Services related expenditure,13/10/2021,7,Director of Children's Services and Education
Other Supplies,Misc Speciality Retail,Amznmktplace,Supplies and Services related expenditure,13/10/2021,40.87,Director of Children's Services and Education
Other Supplies,Misc Speciality Retail,Amznmktplace Amazon.Co.Uk,Supplies and Services related expenditure,13/10/2021,264.08,Director of Children's Services and Education
Government Service,Govt Serv - Default,Pcc Internet Payment,Supplies and Services related expenditure,13/10/2021,11,Director of Children's Services and Education
Government Service,Govt Serv - Default,Pcc Internet Payment,Supplies and Services related expenditure,13/10/2021,11,Director of Children's Services and Education
Government Service,Govt Serv - Default,Pcc Internet Payment,Supplies and Services related expenditure,13/10/2021,11,Director of Children's Services and Education
Government Service,Govt Serv - Default,Pcc Internet Payment,Supplies and Services related expenditure,13/10/2021,11,Director of Children's Services and Education
Type of Retail Store,Grocery Stores/Supermarkets,Tesco Store 3048,Supplies and Services related expenditure,13/10/2021,10,Director of Children's Services and Education
Other Supplies,Misc Speciality Retail,Iz *manam Ltd,Supplies and Services related expenditure,13/10/2021,20,Director of Children's Services and Education
Hotels And Motels,Lodging/Hotels/Motels/Resorts,Hotel At Booking.Com,Supplies and Services related expenditure,13/10/2021,103,Director of Children's Services and Education
Business Expenses/Services,Postage Stamps,Post Office Counter,Supplies and Services related expenditure,13/10/2021,6.21,Director of Children's Services and Education
Type of Retail Store,Drug Stores & Pharmacies,"Boots,1022",Supplies and Services related expenditure,13/10/2021,10.98,Director of Children's Services and Education
Government Service,Govt Serv - Default,Www.Portsmouthcc.Gov.U,Transport related expenditure,13/10/2021,1.6,Director of Adult Care
Government Service,Govt Serv - Default,Www.Portsmouthcc.Gov.U,Transport related expenditure,13/10/2021,0.17,Director of Adult Care
Type of Retail Store,Grocery Stores/Supermarkets,Marks&spencer Plc Saca,Supplies and Services related expenditure,13/10/2021,3.46,Director of Children's Services and Education
Auto/Vehicle Expenses,Toll And Bridge Fees,Dart-Charge,Transport related expenditure,13/10/2021,5,Director of Children's Services and Education
Transportation Conveyor,Bus Lines/Charter/Tour,Nx Website,Transport related expenditure,13/10/2021,19,Director of Children's Services and Education
Transportation Conveyor,Passenger Railways,Thetrainline.Com,Transport related expenditure,13/10/2021,26.27,Director of Children's Services and Education
Other Supplies,Misc Speciality Retail,Amznmktplace,Premises related expenditure,13/10/2021,3.49,Director of Adult Care
